Cogmind - Beta 16 @@@ ROGUE MODE // 2026.02.04 @ 20:43:00 Player: +Jones Result: Destroyed by P-80 Master with Gamma Rifle Performance ------------- Evolutions (9) 4500 Regions Visited (37) 7400 Robots Destroyed (716) 3580 Value Destroyed (37236) 37236 Prototype IDs (83) 1660 Alien Tech Used (0) 0 Bonus (27486) 27486 TOTAL SCORE: 81862 Bonus ------- Triggered High Security 1000 High Alert Combat Kills 12096 Follower Combat Kills 2904 Entered Garrisons 800 Entered DSFs 500 Network Hubs Disabled 400 Aligned with FarCom 300 Met Data Miner 300 Acquired ECA 300 Met Warlord at Base 500 MAIN.C Attacked Warlord 500 Warlord Defense Kills 1038 Built Enhanced Grunts 300 A7 Reached Mainframe 300 Met R17 at Cetus 500 Met R17 at Research 2000 Met Warlord at Research 2000 Invited to Help at Command 2000 Met Warlord at Command 2000 Friendly Fire -2252 Cogmind --------- Core Integrity 0/1600 Matter 300/300 Energy 451/700 System Corruption 37% Temperature Cool (0) Movement Core (50) Location -1/Command Parts ------- > --- POWER (2) -------- (None) > --- PROPULSION (6) --- (None) > --- UTILITY (12) ----- Experimental Energy Well Advanced Target Analyzer Experimental Core Analyzer > --- WEAPON (5) ------- (None) > --- INVENTORY (5) ---- Biometal Heavy Treads Biometal Heavy Treads Peak State ------------ > --- POWER ------------ Light Quantum Reactor Light Quantum Reactor > --- PROPULSION ------- Biometal Heavy Treads Biometal Heavy Treads High-density Centrium Heavy Treads > --- UTILITY ---------- Experimental Heat Sink Huge Storage Unit Experimental Energy Well Experimental Matter Compressor Advanced Target Analyzer Experimental Core Analyzer Experimental Core Analyzer Layered Heavy Armor Plating Advanced Force Field System Mapper Improved System Guard > --- WEAPON ----------- Heavy Machine Gun Hypervelocity Railgun Helical Railgun Helical Railgun Enhanced Hardcell Cannon > --- INVENTORY -------- Biometal Heavy Treads Biometal Heavy Treads Enhanced Armored Heavy Treads Advanced Heavy Siege Treads Advanced Heat Sink Energy Well Experimental Matter Compressor Experimental Matter Compressor Long-range Terrain Scanner Advanced Target Analyzer Advanced Phase Shifter Improved Cloaking Device Centrium Light Armor Plating Improved Remote Force Field Long-range Tractor Beam KE Penetrator Enhanced Hardcell Cannon Enhanced Hardcell Cannon Fusion Bomb Launcher Advanced Remote Datajack Particle Cleaver [Rating: 223] Favorites ----------- Power Quantum Reactor Engine Reinforced Ion Engine Power Core Enhanced Fission Core Reactor Quantum Reactor Propulsion Armored Treads Treads Armored Treads Leg Carbon-fiber Leg Wheel Centrium Wheel Hover Unit Gravmag System Utility Huge Storage Unit Device Experimental Sensor Array Storage Huge Storage Unit Processor Core Analyzer Hackware System Mapper Protection Improved Medium Armor Plating Weapon Hypervelocity Railgun Energy Gun Improved Heavy Laser Energy Cannon Neutron Cannon Ballistic Gun Hypervelocity Railgun Ballistic Cannon Assault Cannon Launcher Precision Rocket Launcher Special Weapon Field Lobotomy Kit Impact Weapon Heavy Mace Slashing Weapon Vibroblade Build | -11 -10 -10 -9 -9 -9 -8 -8 -8 -8 -8 -7 -7 -7 -7 -6 -6 -6 -6 -6 -6 -5 -5 -5 -5 -5 -5 -4 -4 -4 -3 -3 -3 -2 -2 -2 -1 -1 ------- Run | Yrd Mat Min Mat Min Exi Min Mat Gar Mat Gar Fac Low Low Dat Pro Fac Ext Cet Arc Hub Fac Was Fac Upp Upp War Pro Fac DSF Res Gar Arm Res Gar Res Acc Com Slots Evolved 18 | . . . 2 . . . 2 . . . 2 . . . . 2 . . . . 2 . . . . . . 2 . 2 . . 2 . . 2 . Power 1 | . . . . . . . . . . . . . . . . . . . . . 1 . . . . . . . . . . . . . . . . Propulsion 4 | . . . 2 . . . 1 . . . 1 . . . . . . . . . . . . . . . . . . . . . . . . . . Utility 10 | . . . . . . . 1 . . . 1 . . . . 1 . . . . 1 . . . . . . 2 . 1 . . 1 . . 2 . Weapon 3 | . . . . . . . . . . . . . . . . 1 . . . . . . . . . . . . . 1 . . 1 . . . . Parts Attached 338 | 8 7 . 25 . 2 . 10 4 3 11 13 19 8 . 2 13 20 14 1 3 6 2 10 2 1 2 3 6 11 20 20 35 16 2 1 20 18 Power 27 | 1 2 . 2 . . . 1 . 2 . . 2 . . . 2 1 1 . . 1 . . . . . . . 1 2 . 3 1 1 . 3 1 Engine 7 | 1 2 . . . . . . . 2 . . . . . . 1 1 . . . . . . . . . . . . . . . . . . . . Core 7 | . . . 2 . . . 1 . . . . 2 . . . 1 . . . . 1 . . . . . . . . . . . . . . . . Reactor 13 | . . . . . . . . . . . . . . . . . . 1 . . . . . . . . . . 1 2 . 3 1 1 . 3 1 Propulsion 81 | 2 1 . 13 . 2 . 3 1 . 3 5 7 2 . . 5 7 3 . . . . . . 1 . . . 4 2 2 10 3 . . 2 3 Treads 57 | 2 1 . 13 . 2 . 3 1 . 3 2 1 1 . . . 4 3 . . . . . . 1 . . . . 2 2 8 3 . . 2 3 Leg 7 | . . . . . . . . . . . 1 3 . . . 1 2 . . . . . . . . . . . . . . . . . . . . Wheel 16 | . . . . . . . . . . . 2 3 . . . 4 1 . . . . . . . . . . . 4 . . 2 . . . . . Hover 1 | . . . . . . . . . . . . . 1 . . . . . . . . . . . . . . . . . . . . . . . . Flight . | . . . . . . . . . . . . . . . . . . . . . . . . . . . . . . . . . . . . . . Utility 124 | 2 3 . 4 . . . 4 1 1 1 6 7 3 . 1 2 3 7 1 2 1 . 9 1 . 2 2 4 2 9 10 12 5 1 1 10 7 Device 54 | 1 . . 1 . . . . . . . 1 4 1 . 1 2 3 3 1 . . . 7 . . 2 1 . 2 4 5 5 . . 1 6 3 Storage 13 | 1 1 . 2 . . . . . 1 . 1 . . . . . . 1 . . . . 1 . . . . . . 2 1 . 1 . . 1 . Processor 21 | . . . . . . . . . . . 2 . 1 . . . . 2 . . . . 1 1 . . . 2 . 1 3 3 2 . . 2 1 Hackware 9 | . . . . . . . . 1 . . . . . . . . . . . 2 . . . . . . . 1 . . . 1 1 1 . . 2 Protection 27 | . 2 . 1 . . . 4 . . 1 2 3 1 . . . . 1 . . 1 . . . . . 1 1 . 2 1 3 1 . . 1 1 Artifact . | . . . . . . . . . . . . . . . . . . . . . . . . . . . . . . . . . . . . . . Weapon 106 | 3 1 . 6 . . . 2 2 . 7 2 3 3 . 1 4 9 3 . 1 4 2 1 1 . . 1 2 4 7 8 10 7 . . 5 7 Energy Gun 11 | . . . . . . . . . . . . 1 2 . . . 4 . . . 3 . . . . . . . 1 . . . . . . . . Energy Cannon 7 | . . . . . . . . . . . . 1 . . . . . . . 1 . 1 . . . . . 1 . 1 2 . . . . . . Ballistic Gun 34 | 3 . . . . . . . . . . . 1 . . . 4 1 3 . . . . . 1 . . . . 3 2 3 1 5 . . 4 3 Ballistic Cannon 32 | . 1 . 5 . . . . 1 . 6 1 . 1 . . . 3 . . . . . . . . . . 1 . 1 . 8 . . . 1 3 Launcher 10 | . . . 1 . . . 1 1 . . 1 . . . 1 . . . . . 1 1 . . . . . . . 2 . . . . . . 1 Special Weapon 1 | . . . . . . . . . . . . . . . . . . . . . . . . . . . . . . . . 1 . . . . . Impact Weapon 5 | . . . . . . . 1 . . 1 . . . . . . 1 . . . . . . . . . . . . 1 . . 1 . . . . Slashing Weapon 6 | . . . . . . . . . . . . . . . . . . . . . . . 1 . . . 1 . . . 3 . 1 . . . . Piercing Weapon . | . . . . . . . . . . . . . . . . . . . . . . . . . . . . . . . . . . . . . . Special Melee Weapon . | . . . . . . . . . . . . . . . . . . . . . . . . . . . . . . . . . . . . . . Unidentified Prototypes 35 | . . . . . . . . . . . . . 1 . . 1 1 5 . 1 3 1 . . . 2 . 1 . 6 6 . 6 . . . 1 Corrupted Parts 2 | . . . . . . . . . . . . . . . . . . . . . . . . . . . . . . . . 2 . . . . . System Corruption 12 | . . . . . . . . . . . . . . . . . . . . . . . . . . . . . . . . 12 . . . . . Parts Lost 111 | . . 1 2 2 . . 3 1 . 3 5 16 2 . 3 . 4 . . . 1 . . . . . 4 . 1 1 10 16 . . 1 13 22 Power 10 | . . . . . . . . . . . . 2 . . . . . . . . . . . . . . . . . . 2 1 . . . 3 2 Propulsion 36 | . . . . 2 . . 2 1 . 1 4 10 . . 2 . 3 . . . . . . . . . . . . . 1 4 . . . 2 4 Utility 38 | . . 1 2 . . . 1 . . . 1 2 2 . . . 1 . . . 1 . . . . . 3 . 1 1 4 6 . . 1 3 8 Weapon 27 | . . . . . . . . . . 2 . 2 . . 1 . . . . . . . . . . . 1 . . . 3 5 . . . 5 8 Highest Loss Streak 21 | . . 1 1 1 . . 1 1 . 1 3 6 1 . 1 . 2 . . . 1 . . . . . 3 . 1 1 10 11 . . 1 9 21 To Critical Strikes 2 | . . . . . . . . . . 1 . . . . . . . . . . . . . . . . . . . . . . . . . . 1 Average Backups 18 | 2 7 9 10 14 14 14 14 14 14 14 18 21 21 20 19 19 24 23 21 22 21 22 21 21 21 20 20 17 20 20 19 20 20 20 20 20 22 Power . | . . . . 1 1 1 . . . . . . . . . . . . . . . . . . . . 1 1 1 . . . . . . . 1 Propulsion 2 | 1 2 1 3 4 3 2 1 . 1 1 1 . . . . . . 2 3 3 2 3 3 3 3 3 3 3 2 3 3 3 2 1 1 2 4 Utility 8 | . 1 1 1 3 4 4 6 8 8 7 10 12 10 9 9 10 12 11 11 12 11 10 10 11 11 10 9 6 7 7 7 7 8 11 11 8 10 Weapon 5 | 1 4 6 5 6 6 6 4 3 3 4 5 6 7 8 7 5 7 6 4 4 4 6 5 5 5 4 4 5 7 5 5 5 8 7 7 8 4 Tool/Special . | . . . . . . . . . . . . . . . . . . . . . . . . . . . . . . . . . . . . . . Unused Backups 81 | . 3 1 6 . . . 3 . 2 . . . 2 . . 2 6 6 2 . 1 . 2 2 . 1 . . 2 7 1 6 3 3 . 1 19 Power 3 | . . . . . . . . . . . . . . . . 1 . . . . . . . . . . . . . . 1 1 . . . . . Propulsion 15 | . 2 . . . . . . . . . . . . . . . . 2 . . . . . 1 . . . . . 2 . . . . . . 8 Utility 29 | . . . . . . . 1 . 1 . . . 1 . . 1 2 2 . . . . . 1 . 1 . . 2 4 . 1 1 2 . 1 8 Weapon 29 | . 1 1 6 . . . 2 . 1 . . . 1 . . . 4 2 2 . 1 . 1 . . . . . . . . 3 1 1 . . 2 Tool/Special 5 | . . . . . . . . . . . . . . . . . . . . . . . 1 . . . . . . 1 . 1 1 . . . 1 Average Slot Usage (%) 83 | . 99 99 98 82 87 100 95 99 98 99 93 56 54 69 58 76 91 86 76 80 79 82 81 82 82 81 78 79 86 91 91 76 84 86 85 85 83 Engine 1 | . 14 14 . . . . . . 8 9 7 . . . . 3 6 1 . . . . . . . . . . . . . . . . . . . Core 2 | . . . 10 11 11 11 9 9 . . . . . . . 1 . . . . 3 5 5 5 5 5 5 5 1 . . . . . . . . Reactor 2 | . . . . . . . . . . . . . . . . . . 4 6 6 4 5 5 5 5 5 5 5 8 7 7 6 8 8 8 7 7 Treads 19 | . 27 27 43 27 31 44 42 44 44 44 39 4 3 7 2 . 7 24 20 20 16 17 16 17 17 17 17 15 11 4 4 12 10 13 13 11 11 Leg 1 | . . . . . . . . . . . . 3 . . . 1 13 . . . . . . . . . . . . . . . . . . . . Wheel 2 | . . . . . . . . . . . . 4 6 7 6 17 11 3 . . . . . . . . . . 7 18 18 1 2 . . . . Device 6 | . 10 . 3 . . . . . . . 1 4 2 15 15 18 19 6 9 7 11 11 11 11 11 10 9 14 14 9 10 4 1 . . 8 6 Storage 8 | . 14 14 11 11 11 11 9 9 9 9 7 7 7 7 7 6 6 6 6 6 5 5 5 5 5 5 5 5 5 8 9 8 8 8 8 10 11 Processor 7 | . . . . . . . . . . . . 7 9 7 7 6 6 18 11 6 5 5 5 10 11 11 11 6 10 9 10 15 19 21 21 20 17 Hackware 4 | . . . . . . . . 8 9 9 7 6 . . . . . . . 10 9 5 5 5 5 5 3 4 5 4 4 4 9 8 6 4 5 Protection 5 | . 3 14 7 11 11 11 16 9 8 9 12 2 6 . . . . . 1 1 1 5 4 . . . . 4 5 8 4 4 2 4 4 3 3 Energy Gun 2 | . . . . . . . . . . . . . 6 7 7 6 4 8 . . 4 5 4 7 10 11 11 9 5 . . . . . . . . Ballistic Gun 5 | . 23 14 . . . . . . . . . . 2 . 4 9 8 9 20 19 7 . 3 . 1 . . 3 6 16 13 . 18 17 20 18 15 Ballistic Cannon 6 | . 4 14 21 21 22 22 16 17 17 13 13 1 5 7 . 1 5 . . . . . . . . . . . . . . 9 1 . . 1 3 Peak Build Rating 223 | 7 8 8 18 18 23 23 37 37 38 38 43 43 41 37 40 59 69 124 127 126 133 129 138 137 133 137 139 154 154 169 168 174 185 188 187 210 223 Average Rating 86 | 5 7 7 16 17 19 23 33 36 36 35 39 28 27 37 34 47 63 96 120 123 127 125 133 131 132 133 131 150 148 161 160 156 174 187 185 202 210 On Entrance 89 | . 7 8 8 18 17 23 23 37 37 36 34 43 29 37 37 33 59 62 121 126 121 129 126 137 129 133 134 139 154 146 153 165 159 185 187 187 208 Avg Prop Armor Cover (%) 13 | . . . . . . . . . . . 12 20 15 17 19 5 15 22 . . . . 8 . 10 10 . . 9 8 10 9 11 . . . . Naked Turns . | . . . . . . . . . . . . . . . . . . . . . . . . . . . . . . . . . . . . . . Heaviest Build 190 | 15 23 23 40 40 40 40 52 48 47 51 118 111 110 92 92 109 123 119 133 133 149 149 152 138 134 134 137 142 146 177 180 176 158 157 175 189 190 Greatest Support 240 | 40 40 40 80 80 80 80 103 103 100 100 120 36 16 16 16 68 66 240 240 240 240 240 240 240 240 240 240 240 240 64 80 240 200 200 200 225 240 Greatest Overweight (x) 30 | . . 1 . . . . . 1 . . 6 28 30 5 29 6 12 4 . . . . . . . . . . 9 10 9 2 2 . . 1 1 Average Overweight (x) 1 | . . . . . . . . . . . . 9 5 5 5 2 5 . . . . . . . . . . . 1 2 2 . . . . . . Largest Inventory Capacity 25 | 8 10 10 15 15 15 15 15 15 25 15 25 25 25 25 25 25 25 25 25 25 25 25 25 25 25 25 25 25 25 25 25 25 25 25 25 25 25 Average Capacity 21 | 7 8 10 11 15 15 15 15 15 15 15 23 25 25 25 25 25 25 25 25 25 25 25 25 25 25 25 25 25 25 25 25 25 25 25 25 25 24 Most Carried 25 | 4 10 10 14 15 15 14 15 15 15 15 25 25 25 25 25 25 25 25 25 25 25 25 25 25 24 25 25 25 25 25 25 25 25 25 25 25 25 Average Carried 20 | 2 7 9 10 14 14 14 14 14 14 14 18 21 21 25 23 23 24 24 24 25 24 25 24 23 23 24 24 21 24 24 24 24 23 24 24 23 24 Final Capacity 25 | 8 10 10 15 15 15 15 15 15 15 15 25 25 25 25 25 25 25 25 25 25 25 25 25 25 25 25 25 25 25 25 25 25 25 25 25 25 5 Final Carried 25 | 4 10 9 14 15 14 14 15 15 15 15 25 20 25 25 23 25 25 25 25 25 25 25 24 24 24 25 22 24 25 24 24 25 24 25 24 24 4 Class Distribution -------------------- 44% | Mutant 18% | Scavenger-Tank 14% | Scavenger-Skirmisher 8% | Scavenger-Mutant 4% | Hacker-Gunner Dominant Class ---------------- Mutant | -10/Materials Mutant | -10/Mines Mutant | -9/Materials Mutant | -9/Mines Mutant | -9/Exiles Mutant | -8/Mines Mutant | -8/Materials Mutant | -8/Garrison Mutant | -8/Materials Mutant | -8/Garrison Scavenger-Mutant | -7/Factory Mutant | -7/Lower Caves Mutant | -7/Lower Caves Mutant | -7/Data Miner Mutant | -6/Proximity Caves Scavenger-Skirmisher | -6/Factory Scavenger-Skirmisher | -6/Extension Scavenger-Gunner | -6/Cetus Scavenger-Skirmisher | -6/Archives Scavenger-Skirmisher | -6/Hub_04(d) Scavenger-Tank | -5/Factory Scavenger-Tank | -5/Waste Scavenger-Tank | -5/Factory Scavenger-Skirmisher | -5/Upper Caves Scavenger-Skirmisher | -5/Upper Caves Scavenger-Skirmisher | -5/Warlord Scavenger-Skirmisher | -4/Proximity Caves Scavenger-Tank | -4/Factory Scavenger-Tank | -4/DSF Scavenger-Tank | -3/Research Scavenger-Tank | -3/Garrison Scavenger-Tank | -3/Armory Hacker-Gunner | -2/Research Hacker-Gunner | -2/Garrison Hacker-Gunner | -2/Research Scavenger-Tank | -1/Access Scavenger-Tank | -1/Command Resources | -11 -10 -10 -9 -9 -9 -8 -8 -8 -8 -8 -7 -7 -7 -7 -6 -6 -6 -6 -6 -6 -5 -5 -5 -5 -5 -5 -4 -4 -4 -3 -3 -3 -2 -2 -2 -1 -1 ----------- Run | Yrd Mat Min Mat Min Exi Min Mat Gar Mat Gar Fac Low Low Dat Pro Fac Ext Cet Arc Hub Fac Was Fac Upp Upp War Pro Fac DSF Res Gar Arm Res Gar Res Acc Com Matter Collected 30069 | 324 567 108 1861 302 . . 1208 856 577 1430 1159 1113 217 . 66 324 1454 346 174 . 373 513 422 830 111 249 157 17 137 2385 2126 2265 298 14 288 5035 2763 Remotely 4978 | . . . . . . . . . . . 691 . . . . . . . . . . . . . . . . . . 263 352 . . . . 2541 1131 Salvage Created 35705 | 177 946 153 2035 148 . . 979 562 551 1241 1157 672 398 . 66 395 1515 561 204 884 687 1101 483 1006 262 182 175 17 369 1415 1438 1247 72 14 283 9415 4895 Parts 1575 | 11 62 3 134 8 . . 52 32 34 50 77 20 14 . 6 11 44 30 15 38 15 . 28 23 5 9 6 2 22 45 69 43 1 . 11 431 224 Haulers Intercepted 20 | . 2 . 5 . . . 3 . . . . . . . . . 1 . . 3 2 . . . . . . . . 1 . . 1 . . 2 . Recyclers Shooed 23 | 1 4 . 3 . . . 1 . 2 . 3 . . . . 3 1 . . . . . 1 . . . . . . . . . . . . 4 . Parts Field Recycled . | . . . . . . . . . . . . . . . . . . . . . . . . . . . . . . . . . . . . . . Retrieved Matter . | . . . . . . . . . . . . . . . . . . . . . . . . . . . . . . . . . . . . . . Parts Self-Destructed 52 | . . . . . . . . . . . . 18 4 . 8 . . . . . . . . 6 9 . 7 . . . . . . . . . . Prevented 6 | . . . . . . . . . . . . . . . 1 . . . . . . . . . . . 5 . . . . . . . . . . Parts Restored . | . . . . . . . . . . . . . . . . . . . . . . . . . . . . . . . . . . . . . . Kills | -11 -10 -10 -9 -9 -9 -8 -8 -8 -8 -8 -7 -7 -7 -7 -6 -6 -6 -6 -6 -6 -5 -5 -5 -5 -5 -5 -4 -4 -4 -3 -3 -3 -2 -2 -2 -1 -1 ------- Run | Yrd Mat Min Mat Min Exi Min Mat Gar Mat Gar Fac Low Low Dat Pro Fac Ext Cet Arc Hub Fac Was Fac Upp Upp War Pro Fac DSF Res Gar Arm Res Gar Res Acc Com Combat Hostiles Destroyed 539 | . 16 3 54 9 . . 22 23 15 38 32 16 3 . 4 . 15 4 1 1 9 6 13 16 5 9 4 . 5 17 22 23 . . 3 93 58 Melee 12 | . . . . . . . . 1 . 2 . . . . . . . . . . . . . . . . . . . . 1 6 . . . 1 1 Guns 228 | . 14 1 . . . . . . . . . 4 2 . 1 . 12 4 1 1 6 . 3 . 2 . 1 . 3 11 17 . . . 3 92 50 Cannons 171 | . 2 2 50 5 . . 19 19 15 19 15 2 1 . . . 1 . . . 2 . 3 . . . . . . 1 . 11 . . . . 4 AOE 122 | . . . 4 4 . . 3 3 . 15 17 8 . . 3 . 2 . . . 1 6 7 16 3 9 3 . 2 5 2 6 . . . . 3 Classes Destroyed 31 | 2 5 1 7 . . . 1 1 . . . 1 2 . 1 . . . . . . 1 . . . 1 . . 2 1 2 1 . . . 1 1 Worker 34 | . . . 3 . . . 6 . 1 . 3 . . . . 4 1 . . 5 . . 2 . . . . 1 . 4 . . . . . 4 . Builder 28 | . 1 . 2 . . . 1 . . . 10 . . . . 1 3 . . 5 . . . . . . . . . 1 . . . . . 4 . Tunneler 12 | 4 1 . 1 . . . 1 . 1 . . . . . . 1 2 . . 1 . . . . . . . . . . . . . . . . . Hauler 20 | . 2 . 5 . . . 3 . . . . . . . . . 1 . . 3 2 . . . . . . . . 1 . . 1 . . 2 . Recycler 33 | 1 3 1 1 1 . . 3 . . . 3 . . . . 2 5 . . 2 . . . . . . . . . 3 . . . . . 6 2 Minesweeper 1 | . . . . . . . . . . . . . 1 . . . . . . . . . . . . . . . . . . . . . . . . Mechanic 8 | . . . 1 . . . . . . . 1 . . . . . . . . . . . . . . . . . . . . 2 . . . 2 2 Operator 8 | . . . 1 . . . . . . . . . . . . 1 . . 3 1 . . . . . . . . . . . 1 . . . . 1 Drone 4 | . . . . . . . . . . . . . . . 2 . . . . . . . . . . . . . . . 2 . . . . . . Watcher 25 | . 3 . 5 . . . 5 . 5 1 1 . . . . . . . . 1 . . 1 . . . . . . . . . . . . 2 1 Swarmer 74 | . 5 . 4 4 . . 6 3 3 4 6 7 . . . . 3 . . . . . 7 4 . 3 . . . 3 3 . . . . 9 . Cutter 1 | . . . . . . . . . . . . . . . . . . . . . . . . . . . . . . . 1 . . . . . . Saboteur 7 | . . . . . . . . . . . . . . . . . . . . . . . . . . . . . . . . 2 . . . 1 4 Grunt 221 | . 11 2 34 5 . . 8 12 7 20 16 6 2 . 1 . 3 . . . 2 . . 9 5 2 3 . . 4 2 5 . . 3 44 15 Brawler 23 | . . . 4 . . . . 3 . 3 . . . . . . . . . . . . . 1 . 1 . . . 1 . 4 . . . 3 3 Duelist 12 | . . . 1 . . . . 2 . 1 1 1 1 . . . 1 . . . . . . 2 . . . . . 1 . . . . . 1 . Protector 11 | . . . 1 . . . . . . . 1 . . . . . . . . . . . . . . 2 . . . . . 1 . . . 3 3 Sentry 56 | . . . 10 . . . 6 2 5 8 3 1 . . 1 . 7 . 1 . 1 . 3 . . . . . . . 4 1 . . . 2 1 Demolisher 3 | . . 1 . . . . . . . . . . . . . . . . . . . . . . . . . . . 2 . . . . . . . Specialist 9 | . . . . . . . . . . . . . . . . . . . . . . . . . . . . . 2 . 2 3 . . . 2 . Hunter 34 | . . . . . . . 2 . . . 1 . . . . . . . . 1 4 . . . . . 1 . . 2 . 2 . . . 13 8 Programmer 46 | . . . . . . . . 1 . 2 4 . . . . . . . . . 2 . 3 . . . . . 2 2 4 5 . . . 11 10 Heavy 3 | . . . . . . . . . . . . . . . . . . . . . . . . . . . . . 1 . . 1 . . . 1 . Q-Series 4 | . . . . . . . . . . . . . . . . . . . . . . . . . . . . . . . 4 . . . . . . Behemoth 2 | . . . . . . . . . . . . 1 . . . . 1 . . . . . . . . . . . . . . . . . . . . Compactor 6 | . . . . . . . . . . . . . . . . . . . . . . 6 . . . . . . . . . . . . . . . Cetus Guard 4 | . . . . . . . . . . . . . . . . . . 4 . . . . . . . . . . . . . . . . . . . Investigator 1 | . . . . . . . . . . . . . . . . . . . . . . . . . . . . . . . . . . . . 1 . Striker 10 | . . . . . . . . . . . . . . . . . . . . . . . . . . . . . . 2 . . . . . 2 6 Executioner 7 | . . . . . . . . . . . . . . . . . . . . . . . . . . 1 . . . . . . . . . 1 5 Decomposer 8 | . . . . . . . . . . . . 1 . . . . . . . . . . . 6 1 . . . . . . . . . . . . Packrat 5 | . . . . . . . . . . . . 3 . . . . . . . . . . . 2 . . . . . . . . . . . . . Samaritan 6 | . . . . . . . . . . . . . 6 . . . . . . . . . . . . . . . . . . . . . . . . Surgeon 1 | . . . . . . . . . . . . . . . . . . . . . . . . . . . . . . . . . . . . . 1 Thug 2 | . . . . . . . . . . . . . . . . . . . . . . . . . . . . . . . . . . . . . 2 Savage 1 | . . . . . . . . . . . . . . . . . . . . . . . . 1 . . . . . . . . . . . . . Butcher 2 | . . . . . . . . . . . . . . . . . . 2 . . . . . . . . . . . . . . . . . . . Guerrilla 3 | . . . . . . . . . . . . . . . . . . 2 . . . . . . . . . . . . . . . . . . 1 Mutant 1 | . . . . . . . . . . . . . . . . . . . . . . . . . . . . . . . . . . . . . 1 Commander 1 | . . . . . . . . . . . . . . . . . . . . . . . . . . . . . . . . . . . . . 1 Best Kill Streak 20 | 2 5 2 8 4 . . 8 4 3 9 13 4 1 . 2 3 6 3 3 18 3 3 7 4 4 5 3 1 3 7 4 5 1 . 2 20 18 Combat Bots Only 16 | . 3 2 7 4 . . 6 4 3 9 11 4 1 . 2 . 3 3 1 1 2 3 5 4 4 5 3 . 3 6 4 5 . . 2 14 16 Max Kills in Single Turn 12 | 1 2 1 4 2 . . 4 3 1 4 4 4 1 . 1 1 2 2 1 12 1 1 4 3 2 3 3 1 1 3 2 2 1 . 1 3 4 Gunslinging 2 | . . . . . . . . . . . . . . . . . . 1 . . . . . . . . . . . 1 . . . . . 2 . Exploded 4 | . . . 4 2 . . 3 3 . 4 4 4 . . 1 . 2 . . . 1 1 4 3 2 3 3 . 1 2 2 2 . . . . 3 Melee 1 | . . . . . . . . 1 . 1 . . . . . . . . . . . . . . . . . . . . 1 1 . . . 1 1 Uniques/NPCs Destroyed . | . . . . . . . . . . . . . . . . . . . . . . . . . . . . . . . . . . . . . . Combat | -11 -10 -10 -9 -9 -9 -8 -8 -8 -8 -8 -7 -7 -7 -7 -6 -6 -6 -6 -6 -6 -5 -5 -5 -5 -5 -5 -4 -4 -4 -3 -3 -3 -2 -2 -2 -1 -1 -------- Run | Yrd Mat Min Mat Min Exi Min Mat Gar Mat Gar Fac Low Low Dat Pro Fac Ext Cet Arc Hub Fac Was Fac Upp Upp War Pro Fac DSF Res Gar Arm Res Gar Res Acc Com Hostile Shots Fired 3330 | . 80 16 144 35 . . 123 96 57 119 201 233 13 . 13 2 165 20 8 32 47 . 70 11 4 14 34 . 49 114 221 558 . . 6 420 425 Missed 903 | . 18 7 43 11 . . 38 25 13 37 59 63 1 . 2 . 69 6 2 3 9 . 15 . 2 3 8 . 10 29 45 179 . . 2 110 94 Hits 2427 | . 62 9 101 24 . . 85 71 44 82 142 170 12 . 11 2 96 14 6 29 38 . 55 11 2 11 26 . 39 85 176 379 . . 4 310 331 Melee 143 | . . . 3 . . . . 1 . 2 5 5 6 . . . . . . . . . . . . . . . . 2 70 3 . . . 15 31 Projectile 2284 | . 62 9 98 24 . . 85 70 44 80 137 165 6 . 11 2 96 14 6 29 38 . 55 11 2 11 26 . 39 83 106 376 . . 4 295 300 AOE 18 | . . 5 . . . . . . . . . . . . . . . . . . . . 1 . . . . . . 11 1 . . . . . . Critical Strikes 140 | . 2 . . . . . 2 6 2 8 6 7 3 . . . 3 3 . 3 1 . 1 1 . . 2 . . 5 26 15 . . . 16 28 Part Disruptions 4 | . . . . . . . . . . . . . . . . . . . . . . . 1 . . . . . . . . 1 . . . 1 1 Actively Blocked 1 | . . . . . . . . . . . . . . . . . . . . . . . . . . . . . . . . . . . . 1 . Damage Taken 45192 | . 705 267 1254 317 . . 1255 1015 738 1478 1996 2331 303 . 197 66 899 372 144 808 539 28 816 214 36 375 795 . 906 1767 4831 7040 . . 43 5562 8095 Core 4533 | . 146 66 118 . . . 62 53 25 79 198 245 112 . 34 36 127 . . 240 10 . 44 20 . 19 79 . 97 71 474 569 . . . 296 1313 Absorbed by Shields 7143 | . . . . . . . . 50 . . . . . . . . 258 123 . . 146 28 373 . . . . . . 745 1330 139 . . 45 2820 1086 Reduced by Siege Mode 1068 | . . . . . . . . . . . . . . . . . . 37 . 53 64 . 32 10 10 . 30 . 57 120 48 . . . 8 112 487 Redirected to Shielding 68 | . . . . . . . . . . . . . . . . . . . . . . . . . . . . . . . . 68 . . . . . Ignored by Resistances 86 | . . . . . . . 86 . . . . . . . . . . . . . . . . . . . . . . . . . . . . . . Regen/Repaired (Parts) 3822 | . 183 . 159 . . . 350 . 1257 . 267 . . . . . . . . . 893 . 372 . . 222 . . . . . . 119 . . . . Core Remaining (%) 59 | 100 . 15 . . . 70 . . . 60 . . . . 15 . . . . 52 . . . . . . 82 . 91 . . 14 . . 100 . . Volleys Fired 1743 | 8 72 13 143 29 . . 118 80 53 92 90 46 80 . 13 28 60 29 12 19 30 22 45 91 17 14 26 3 11 56 106 74 2 3 6 160 92 Largest 5 | 2 2 2 2 2 . . 2 2 2 2 2 2 2 . 2 3 3 3 3 3 3 2 3 2 3 3 3 3 3 4 4 4 5 4 5 5 5 Hottest 235 | 40 50 50 74 74 . . 74 74 74 80 80 109 135 . 108 143 204 181 105 160 195 79 190 90 163 220 165 165 235 210 143 214 214 160 200 200 218 Shots Fired 3856 | 16 142 25 284 56 . . 214 140 106 148 165 67 86 . 14 47 145 83 36 36 71 33 85 92 26 18 28 5 25 153 231 169 9 12 30 649 410 Gun 1983 | 16 133 13 . . . . . . . . . 11 79 . 5 30 101 83 36 25 54 . 44 . 14 5 3 3 14 125 186 4 6 12 30 627 324 Cannon 1680 | . 9 12 282 54 . . 213 138 106 123 148 37 7 . . 17 43 . . 11 17 . 37 70 9 2 21 2 7 22 44 140 3 . . 22 84 Launcher 188 | . . . 2 2 . . 1 2 . 25 17 19 . . 9 . 1 . . . . 33 4 22 3 11 4 . 4 6 1 20 . . . . 2 Special 5 | . . . . . . . . . . . . . . . . . . . . . . . . . . . . . . . . 5 . . . . . Kinetic 3139 | 16 142 25 282 54 . . 213 138 106 123 148 28 14 . 2 27 120 29 36 25 22 . 19 . 4 1 1 1 . 125 186 144 9 12 30 649 408 Thermal 465 | . . . . . . . . . . . . 1 44 . 3 10 22 54 . 11 49 . 62 70 19 6 23 4 21 22 44 . . . . . . Explosive 188 | . . . 2 2 . . 1 2 . 25 17 19 . . 9 . 1 . . . . 33 4 22 3 11 4 . 4 6 1 20 . . . . 2 Electromagnetic 59 | . . . . . . . . . . . . 19 28 . . 10 2 . . . . . . . . . . . . . . . . . . . . Robot Hit Streak 48 | 13 13 7 33 6 . . 11 23 25 16 14 11 12 . 13 16 11 14 5 8 28 20 11 5 11 7 3 5 11 26 48 9 7 . 6 33 18 Robot Miss Streak 8 | 1 5 1 7 3 . . 4 2 2 2 4 4 4 . 1 1 8 6 2 1 2 2 2 2 2 2 1 . 2 3 4 8 3 . 3 5 6 Penetration Max 4 | . . . . . . . . . . . 1 . . . . . 2 . 1 1 1 . 1 . . . . . . 2 1 . . . . 4 3 Secondary Targets 37 | . 1 . . . . . . . . . . . . . . . . 1 . . . . . . . . . . . 2 5 . . . . 28 . Max Gunslinging Chain 2 | . 1 . . . . . . . . . . . . . . . . 1 . . . . . . . . . . . 1 1 . . . . 2 . Shots Hit Robots 2308 | 13 91 18 183 32 . . 122 92 74 110 93 62 65 . 5 24 94 57 19 16 43 24 51 17 12 7 3 2 18 98 135 127 4 1 10 380 206 Core Hits 1460 | 5 42 10 90 12 . . 47 35 31 72 82 46 36 . 12 9 65 29 10 29 20 10 24 48 15 48 11 1 17 57 59 96 1 4 6 229 152 Critical Kills 167 | . . . . . . . . . . . . . . . . . 2 1 2 . 1 . . . . . . . . 1 1 . . . 3 108 48 Critical Parts Destroyed 173 | . . . . . . . 1 . . 2 . 1 . . . . 5 . 2 2 1 . 1 . . . . . . . 4 5 2 . 3 97 47 Critical Strikes 418 | . . . 12 1 . . 7 2 3 10 11 3 2 . . . 10 4 4 2 3 . 2 . . . . . . 1 7 14 2 . 6 209 103 Burn 7 | . . . . . . . . . . . . . 1 . . . 1 3 . . 1 . 1 . . . . . . . . . . . . . . Destroy 337 | . . . . . . . . . . . . . . . . . 5 1 4 2 2 . 1 . . . . . . 1 2 2 2 . 6 209 100 Blast 55 | . . . 12 1 . . 6 2 3 7 11 2 1 . . . 1 . . . . . . . . . . . . . . 6 . . . . 3 Smash 14 | . . . . . . . 1 . . 3 . 1 . . . . 3 . . . . . . . . . . . . . 3 3 . . . . . Sever 5 | . . . . . . . . . . . . . . . . . . . . . . . . . . . . . . . 2 3 . . . . . Melee Attacks 195 | . . . . . . . 7 . . 32 . 18 . . . 5 11 . . . . . 15 11 . . 1 . . 2 14 50 . 8 . 19 2 Impact 115 | . . . . . . . 7 . . 32 . 18 . . . 5 11 . . . . . . . . . . . . 2 5 16 . . . 19 . Slashing 80 | . . . . . . . . . . . . . . . . . . . . . . . 15 11 . . 1 . . . 9 34 . 8 . . 2 Piercing . | . . . . . . . . . . . . . . . . . . . . . . . . . . . . . . . . . . . . . . Sneak Attacks 24 | . . . . . . . 4 . . 1 . 3 . . . 3 8 . . . . . 2 3 . . . . . . . . . . . . . Combat Hostiles 1 | . . . . . . . . . . 1 . . . . . . . . . . . . . . . . . . . . . . . . . . . Follow-up Attacks 9 | . . . . . . . . . . . . . . . . . . . . . . . . . . . . . . . 2 7 . . . . . Damage Inflicted 80026 | 166 1247 279 4764 1098 . . 3540 2492 1835 4959 4778 2432 1062 . 401 605 3239 1249 649 2654 1351 3542 2655 2726 886 2421 505 53 870 3790 4183 7658 101 622 87 4171 6956 Guns 21872 | 166 1115 131 . . . . . . . . . 272 950 . 114 296 1453 1249 649 410 1033 . 954 . 271 81 50 53 309 2240 3347 34 14 . 87 3872 2722 Cannons 25838 | . 128 148 4566 877 . . 2995 2291 1835 2014 2606 528 112 . . . 645 . . 35 245 . 745 295 40 78 . . 146 341 . 3601 87 . . . 1480 Explosions 25573 | . . . 194 217 . . 195 190 . 1643 2160 991 . . 287 55 198 . . 2209 73 3542 784 2019 575 2262 455 . 415 1197 224 2516 . 466 . . 2706 Melee 6593 | . . . . . . . 349 . . 1302 . 641 . . . 254 882 . . . . . 154 412 . . . . . . 612 1484 . 156 . 299 48 Ramming 150 | . 4 . 4 4 . . 1 11 . . 12 . . . . . 61 . . . . . 18 . . . . . . 12 . 23 . . . . . Kinetic 41130 | 166 1243 279 4566 877 . . 2995 2291 1835 2014 2606 466 255 . 44 69 1652 347 649 410 396 . 405 . 53 28 . . . 2240 3347 3635 101 . 87 3872 4202 Thermal 6072 | . . . . . . . . . . . . 35 518 . 70 182 401 902 . 35 882 . 1366 393 258 131 50 53 455 341 . . . . . . . Explosive 23045 | . . . 194 217 . . 195 190 . 1643 2066 991 . . 287 . 198 . . . 73 3542 712 1921 575 2262 455 . 415 1197 224 2516 . 466 . . 2706 Electromagnetic 3036 | . . . . . . . . . . . 94 299 289 . . 100 45 . . 2209 . . . . . . . . . . . . . . . . . Impact 4546 | . . . . . . . 349 . . 1302 . 641 . . . 254 882 . . . . . . . . . . . . . 214 605 . . . 299 . Slashing 2047 | . . . . . . . . . . . . . . . . . . . . . . . 154 412 . . . . . . 398 879 . 156 . . 48 Piercing . | . . . . . . . . . . . . . . . . . . . . . . . . . . . . . . . . . . . . . . Highest Corruption 36 | . 3 3 . . . . . . . . 3 3 . . . . 4 4 4 12 2 2 4 . . . 11 . 2 2 4 22 . . . . 36 Average Corruption 3 | . 2 3 . . . . . . . . 2 2 . . . . 4 4 3 4 1 2 2 . . . 11 . 1 2 2 8 . . . . 18 Corruption Purged 28 | . . . . . . . . . . . . 3 . . . . . . 4 . . . 11 . . . . . . . . 10 . . . . . Corruption Blocked . | . . . . . . . . . . . . . . . . . . . . . . . . . . . . . . . . . . . . . . Effects 287 | . 13 8 . . . . . . . . 12 38 . . . . 54 15 4 . 2 4 17 . . . 8 . 3 15 32 61 . . . . 1 Message Errors 76 | . 7 1 . . . . . . . . 1 9 . . . . 19 3 1 . 1 . 4 . . . 1 . 1 4 12 12 . . . . . Matter Fused 68 | . 1 1 . . . . . . . . 3 12 . . . . 12 5 . . . 1 3 . . . 5 . 1 2 5 16 . . . . 1 Heat Flow Errors 31 | . 2 1 . . . . . . . . 1 4 . . . . 5 . . . . . 2 . . . 1 . . 1 7 7 . . . . . Energy Discharges 37 | . 1 1 . . . . . . . . 2 5 . . . . 8 4 2 . . 1 3 . . . . . . 1 2 7 . . . . . Parts Rejected 6 | . . 1 . . . . . . . . . . . . . . 1 . . . . . 1 . . . . . 1 . . 2 . . . . . Parts Fused 5 | . . . . . . . . . . . . 1 . . . . 1 . . . . . 1 . . . 1 . . . . 1 . . . . . Data Loss (minor) 22 | . . 2 . . . . . . . . 3 2 . . . . 4 2 1 . . 1 1 . . . . . . . 1 5 . . . . . Data Loss (major) 17 | . 1 . . . . . . . . . 1 4 . . . . 3 . . . . . . . . . . . . 1 3 4 . . . . . Misfires 12 | . . . . . . . . . . . 1 1 . . . . . . . . 1 . 1 . . . . . . 3 1 4 . . . . . Alerts 2 | . . . . . . . . . . . . . . . . . 1 . . . . . 1 . . . . . . . . . . . . . . Weapon Failures 11 | . 1 1 . . . . . . . . . . . . . . . 1 . . . 1 . . . . . . . 3 1 3 . . . . . Overload Shots . | . . . . . . . . . . . . . . . . . . . . . . . . . . . . . . . . . . . . . . Overflow Damage 2989 | . . . 56 26 . . 305 40 40 123 109 256 . . 33 177 445 . . 204 . 32 168 263 . 28 9 . . 77 265 269 . 6 . 18 40 Projectiles 506 | . . . 46 10 . . 88 40 40 . 109 14 . . . . 2 . . . . . 61 52 . . . . . 11 . 33 . . . . . Explosions 723 | . . . 10 16 . . . . . 7 . 58 . . 33 . . . . 204 . 32 18 81 . 28 9 . . 66 71 44 . 6 . . 40 Melee 1760 | . . . . . . . 217 . . 116 . 184 . . . 177 443 . . . . . 89 130 . . . . . . 194 192 . . . 18 . Knockbacks 181 | . 1 1 37 10 . . 30 14 12 16 16 4 . . . 3 2 . . . . . . . . . . . . . 1 23 . . . . 11 Impact 12 | . . . . . . . . . . 1 . . . . . 3 2 . . . . . . . . . . . . . 1 5 . . . . . Kinetic 156 | . 1 1 34 10 . . 26 12 12 14 15 4 . . . . . . . . . . . . . . . . . . . 17 . . . . 10 Secondary 13 | . . . 3 . . . 4 2 . 1 1 . . . . . . . . . . . . . . . . . . . . 1 . . . . 1 Self-Inflicted Damage 1442 | . . . . . . . 38 . . 178 142 180 . . 77 36 30 . . 192 . 56 48 . . . 23 . . 6 . 149 . . . 106 181 Shots 35 | . . . . . . . 1 . . 4 7 9 . . 2 1 . . . 2 . 1 1 . . . 1 . . . . 3 . . . 1 2 Rammed 14 | . 3 . 2 1 . . . 1 . . 1 . . . . . 1 . . . . . 1 . . . . . . 1 . 3 . . . . . Targets Rammed 17 | . 3 . 2 1 . . 1 2 . . 2 . . . . . 1 . . . . . 1 . . . . . . 1 . 3 . . . . . Kicked . | . . . . . . . . . . . . . . . . . . . . . . . . . . . . . . . . . . . . . . Crushed 3 | . . . . . . . 1 1 . . 1 . . . . . . . . . . . . . . . . . . . . . . . . . . Highest Temperature 674 | . 161 121 198 261 . . 375 264 171 228 249 360 2 . 6 150 130 108 96 306 193 . 284 168 288 306 304 116 195 74 172 674 63 120 272 348 434 Average Temperature 76 | . 32 28 49 101 . . 92 66 32 67 61 128 2 . 4 51 30 29 40 104 41 . 81 53 80 159 102 59 123 22 31 124 27 51 115 96 112 Received Heat Transfer 8083 | . 294 33 573 165 . . 459 558 333 666 588 894 72 . 45 . 320 4 . 27 8 . 52 108 18 36 57 . 168 161 52 1701 . . 8 461 222 Effects 24 | . . . . . . . . . . . 1 1 . . . . . . . . . . . . . . 2 . . . . 6 . . . 9 5 Shutdowns 4 | . . . . . . . . . . . . . . . . . . . . . . . . . . . . . . . . 2 . . . 1 1 Energy Bleed 6 | . . . . . . . . . . . 1 . . . . . . . . . . . . . . . 2 . . . . . . . . 1 2 Interference 8 | . . . . . . . . . . . . . . . . . . . . . . . . . . . . . . . . 2 . . . 6 . Matter Decay 3 | . . . . . . . . . . . . 1 . . . . . . . . . . . . . . . . . . . . . . . . 2 Short Circuit 1 | . . . . . . . . . . . . . . . . . . . . . . . . . . . . . . . . 1 . . . . . Damage (minor) 2 | . . . . . . . . . . . . . . . . . . . . . . . . . . . . . . . . 1 . . . 1 . Siege Activations 37 | . . . . . . . . . . . . . . . . . . 1 . 1 1 . 3 4 1 . 1 . 1 4 5 2 . . 1 7 5 Total Turns 668 | . . . . . . . . . . . . . . . . . . 19 . 36 21 . 36 64 24 . 11 . 17 89 113 21 . . 11 141 65 Longest Duration 49 | . . . . . . . . . . . . . . . . . . 19 . 36 21 . 24 35 24 . 11 . 17 49 36 14 . . 11 41 30 Martial Activations . | . . . . . . . . . . . . . . . . . . . . . . . . . . . . . . . . . . . . . . Shielding Activations . | . . . . . . . . . . . . . . . . . . . . . . . . . . . . . . . . . . . . . . Robots Disrupted 2 | . . . . . . . . . . . 1 . 1 . . . . . . . . . . . . . . . . . . . . . . . . Combat Hostiles . | . . . . . . . . . . . . . . . . . . . . . . . . . . . . . . . . . . . . . . Robots Corrupted 20 | . . . . . . . 2 . . 3 . 3 1 . . 3 3 . . 3 . . . . . . . . . . 2 . . . . . . Combat Hostiles 6 | . . . . . . . . . . 2 . 2 . . . . . . . . . . . . . . . . . . 2 . . . . . . Parts Fried 77 | . . . . . . . 5 . . 2 . 1 13 . . 8 11 1 . 17 . . . . . . . . . . 7 2 . . . 4 6 Impact Corruptions 51 | . . . . . . . 6 . . 6 . 4 . . . 6 14 . . . . . . . . . . . . . 5 9 . . . 1 . Robots Melted . | . . . . . . . . . . . . . . . . . . . . . . . . . . . . . . . . . . . . . . Combat Hostiles . | . . . . . . . . . . . . . . . . . . . . . . . . . . . . . . . . . . . . . . Parts Melted 11 | . . . . . . . . . . . . . . . . . 2 1 . . 4 . 2 . . . . . . . . . . . . 1 1 Heat Transferred 7376 | . . . . . . . . . . . . 75 1284 . 149 346 910 1317 . . 925 . 827 100 296 74 74 74 592 333 . . . . . . . Parts Sabotaged 3 | . . . . . . . . . . . . . . . . . . . . . . . . . . . . . . . . 2 . . . . 1 Parts Stolen 2 | . . . . . . . . . . . . 2 . . . . . . . . . . . . . . . . . . . . . . . . . Parts Stripped . | . . . . . . . . . . . . . . . . . . . . . . . . . . . . . . . . . . . . . . Power Chain Reactions 4 | . . . . . . . . . . . . . . . . 2 . . . . . . 1 1 . . . . . . . . . . . . . Alert | -11 -10 -10 -9 -9 -9 -8 -8 -8 -8 -8 -7 -7 -7 -7 -6 -6 -6 -6 -6 -6 -5 -5 -5 -5 -5 -5 -4 -4 -4 -3 -3 -3 -2 -2 -2 -1 -1 ------- Run | Yrd Mat Min Mat Min Exi Min Mat Gar Mat Gar Fac Low Low Dat Pro Fac Ext Cet Arc Hub Fac Was Fac Upp Upp War Pro Fac DSF Res Gar Arm Res Gar Res Acc Com Maximum Alert Level 5 | . . . 3 1 . . 1 4 2 5 4 . . . . . 3 2 1 2 1 . 1 . . . . . . 1 3 4 3 4 3 5 5 Low Security (%) 45 | 100 100 100 26 41 . 100 94 4 70 5 . . . . . 100 63 . 95 97 98 100 98 . . . . 100 100 95 . . . . . . . Level 1 12 | . . . 23 58 . . 5 14 17 16 . . . . . . 12 84 4 . 1 . 1 . . . . . . 4 14 . 19 12 . 33 . Level 2 17 | . . . 43 . . . . 53 12 16 . . . . . . 15 15 . 2 . . . . . . . . . . 41 61 63 31 48 12 . Level 3 10 | . . . 6 . . . . 24 . 23 46 . . . . . 9 . . . . . . . . . . . . . 44 21 17 36 51 14 . Level 4 8 | . . . . . . . . 2 . 29 53 . . . . . . . . . . . . . . . . . . . . 16 . 19 . 16 38 Level 5 . | . . . . . . . . . . 8 . . . . . . . . . . . . . . . . . . . . . . . . . 3 6 High Security 4 | . . . . . . . . . . . . . . . . . . . . . . . . . . . . . . . . . . . . 18 55 Max Security . | . . . . . . . . . . . . . . . . . . . . . . . . . . . . . . . . . . . . . . Sterilizations 1 | . . . 1 . . . . . . . . . . . . . . . . . . . . . . . . . . . . . . . . . . Peak Influence 2651 | 10 120 50 799 345 . . 232 1126 548 1689 1454 . . . . 150 790 429 209 419 200 173 225 . . . . 22 143 325 1018 1452 777 1319 834 2341 2651 Initial 1497 | . . 8 . 253 . . . 95 548 119 886 . . . . 150 . 429 114 44 200 48 93 . . . . 4 2 80 240 496 757 249 741 396 1497 Average 476 | . 44 7 366 202 . . 69 604 199 910 1096 . . . . 49 204 352 163 56 95 115 64 . . . . 1 95 41 674 778 540 831 698 989 1866 Influence Increases 22556 | 25 544 85 1638 255 . . 815 1041 531 1600 1123 400 90 . 88 231 1471 352 205 602 380 195 582 375 199 150 105 29 151 663 886 1877 40 1070 290 2676 1792 Destroy 0b10 Robot/C 11540 | . 320 60 1060 180 . . 440 460 300 760 620 320 60 . 60 . 660 160 60 80 180 . 260 320 160 140 80 . 100 340 460 900 . . 140 1820 1040 Destroy 0b10 Robot/NC 975 | 25 50 5 100 5 . . 95 . 35 15 95 . 5 . 10 45 65 10 25 90 10 . 15 10 5 10 . 5 5 45 . 30 5 . . 115 45 Destroy Leader 1910 | . 70 20 270 40 . . 126 20 90 40 132 50 10 . 10 . 72 . . 18 44 . 72 30 20 . 10 . 20 72 20 174 2 . 20 306 152 Allied During Kill 1145 | . . . . . . . . . . . . . . . 8 . 535 169 70 44 . . . . 14 . . . . . 3 226 . . 76 . . Trap Triggered on 0b10 30 | . . . . . . . . . . . . . . . . . 30 . . . . . . . . . . . . . . . . . . . . Successful Hack 584 | . 13 . 32 . . . 52 12 16 12 12 . . . . 5 12 9 . 45 52 . 59 . . . . 3 . 59 10 . 30 6 18 39 88 Select Force Hacks 90 | . 30 . 60 . . . . . . . . . . . . . . . . . . . . . . . . . . . . . . . . . . Disable Machine 705 | . . . 45 . . . 15 . 15 45 60 . . . . 15 30 . 45 105 30 . 45 . . . . 15 . 15 . 165 . 15 . 30 15 Anti-Garrison Action 2050 | . . . . . . . . 400 . 550 . . . . . . . . . . . . . . . . . . . . 250 . . 800 . . 50 Destroy Structure 2522 | . 1 . 71 15 . . 57 74 15 103 114 . . . . 16 22 4 5 220 64 180 116 . . . . 6 26 132 143 322 3 249 6 231 327 Advance Influence 150 | . . . . . . . . . . . . . . . . 150 . . . . . . . . . . . . . . . . . . . . . Partial Spotted 15 | . . . . . . . . . . . . . . . . . . . . . . 15 . . . . . . . . . . . . . . . Lose Combat Pursuer 840 | . 60 . . 15 . . 30 75 60 75 90 30 15 . . . 45 . . . . . 15 15 . . 15 . . . . 60 . . 30 135 75 Influence Decreases 20023 | 25 521 108 986 859 48 . 668 62 1473 95 1379 1461 462 . 88 231 703 833 363 322 650 201 490 549 250 36 211 34 11 485 261 1379 1151 84 948 996 1600 Entered New Map 6766 | . . 15 . 399 48 . . 52 578 65 803 531 72 . . . . 339 173 85 209 91 40 84 11 . 114 4 1 63 81 450 687 84 578 265 844 Time Decay 10036 | 25 521 93 666 440 . . 497 . 595 . 526 770 370 . 68 231 418 334 110 140 394 110 450 465 199 36 60 30 . 268 . 589 464 . 180 601 386 Lost Part 1052 | . . . 20 20 . . 20 10 . 30 50 160 20 . . . 35 . . . 10 . . . . . 37 . 10 10 100 160 . . 10 130 220 Lost Ally 939 | . . . . . . . 2 . . . . . . . 20 . 100 160 80 97 . . . . 40 . . . . . 80 180 . . 180 . . Purge Threat 1230 | . . . 300 . . . 149 . 300 . . . . . . . 150 . . . 37 . . . . . . . . 144 . . . . . . 150 Squads Dispatched 152 | . 3 . 9 . . . 4 . 2 . 15 . . . . 1 3 . . 3 3 . 8 . . . . . 1 5 . 18 1 . 4 31 41 Investigation 12 | . 2 . 3 . . . 1 . . . 1 . . . . . . . . . 1 . 1 . . . . . . . . . . . 1 2 . Extermination 20 | . . . . . . . . . . . 3 . . . . 1 . . . . 1 . 3 . . . . . . . . 5 . . 1 3 3 Reinforcement 42 | . 1 . 3 . . . 2 . 2 . 6 . . . . . 2 . . 2 1 . 1 . . . . . 1 5 . 6 1 . 1 6 2 Assault 70 | . . . 3 . . . . . . . 3 . . . . . 1 . . . . . . . . . . . . . . 7 . . 1 19 36 Garrison 8 | . . . . . . . 1 . . . 2 . . . . . . . . 1 . . 3 . . . . . . . . . . . . 1 . Intercept . | . . . . . . . . . . . . . . . . . . . . . . . . . . . . . . . . . . . . . . Searches Triggered . | . . . . . . . . . . . . . . . . . . . . . . . . . . . . . . . . . . . . . . Unchained Authorized 2 | . . . . . . . . . . . . . . . . . . . . . . . 1 . . . . . . . . . . . 1 . . Data Miner Redirects 9 | . . . . . . . . . . . . . . . . . . . . . . . . . . . . . . . . 4 . . . 3 2 Construction Impeded 10 | . . . 1 . . . . . . . 4 . . . . . 1 . . 1 1 . 1 . . . . . . . . . . . . 1 . Haulers Reinforced 6 | . . . . . . . . . . . 1 . . . . . . . . . . . . . . . . . . 3 . . . . . 2 . Active Scanning Responses . | . . . . . . . . . . . . . . . . . . . . . . . . . . . . . . . . . . . . . . Cargo Convoy Interrupts . | . . . . . . . . . . . . . . . . . . . . . . . . . . . . . . . . . . . . . . Stealth | -11 -10 -10 -9 -9 -9 -8 -8 -8 -8 -8 -7 -7 -7 -7 -6 -6 -6 -6 -6 -6 -5 -5 -5 -5 -5 -5 -4 -4 -4 -3 -3 -3 -2 -2 -2 -1 -1 --------- Run | Yrd Mat Min Mat Min Exi Min Mat Gar Mat Gar Fac Low Low Dat Pro Fac Ext Cet Arc Hub Fac Was Fac Upp Upp War Pro Fac DSF Res Gar Arm Res Gar Res Acc Com Distress Signals 55 | . 2 . 3 . . . 4 . 6 1 3 . . . . . 2 2 . 1 . . 2 . . . . . . 7 . 2 3 . . 9 8 Communications Jammed 5 | . . . . . . . . . . . . . . . . . . . . . . . . . . . . . 2 3 . . . . . . . Distress Signals 3 | . . . . . . . . . . . . . . . . . . . . . . . . . . . . . . 3 . . . . . . . Times Spotted 840 | . 27 5 80 8 . . 29 27 28 36 41 22 4 . 5 2 31 10 5 11 9 6 21 9 7 17 4 . 5 21 26 95 2 . 4 115 128 Peak Tracking Total 23 | . 5 2 6 4 . . 6 6 6 6 9 4 3 . 1 1 4 5 2 16 2 2 6 7 4 10 3 1 2 6 5 12 1 . 3 10 23 Tactical Retreats 46 | . 3 . . 1 . . 2 4 3 4 4 2 1 . . . 3 . . . . . 1 1 . . 1 . . . . 5 . . 1 6 4 Traps | -11 -10 -10 -9 -9 -9 -8 -8 -8 -8 -8 -7 -7 -7 -7 -6 -6 -6 -6 -6 -6 -5 -5 -5 -5 -5 -5 -4 -4 -4 -3 -3 -3 -2 -2 -2 -1 -1 ------- Run | Yrd Mat Min Mat Min Exi Min Mat Gar Mat Gar Fac Low Low Dat Pro Fac Ext Cet Arc Hub Fac Was Fac Upp Upp War Pro Fac DSF Res Gar Arm Res Gar Res Acc Com Traps Triggered 25 | . 4 . . . . . 1 3 . 1 2 . . . . . 1 . . . 1 . 2 . . . . . . 1 2 . . 2 . 5 . Indirectly . | . . . . . . . . . . . . . . . . . . . . . . . . . . . . . . . . . . . . . . Trap Hack Attempts . | . . . . . . . . . . . . . . . . . . . . . . . . . . . . . . . . . . . . . . Triggered . | . . . . . . . . . . . . . . . . . . . . . . . . . . . . . . . . . . . . . . Disarmed . | . . . . . . . . . . . . . . . . . . . . . . . . . . . . . . . . . . . . . . Reprogrammed . | . . . . . . . . . . . . . . . . . . . . . . . . . . . . . . . . . . . . . . Reused 4 | . . . . . . . . . . . . . . . 1 . 3 . . . . . . . . . . . . . . . . . . . . Traps Extracted . | . . . . . . . . . . . . . . . . . . . . . . . . . . . . . . . . . . . . . . Installed 5 | . . . . . . . . . . . . . . . 1 . 4 . . . . . . . . . . . . . . . . . . . . Triggered 4 | . . . . . . . . . . . . . . . 1 . 3 . . . . . . . . . . . . . . . . . . . . Most Traps Carried 5 | . . . . . . . . . . . . . 5 5 5 4 4 . . . . . . . . . . . . . . . . . . . . Machines | -11 -10 -10 -9 -9 -9 -8 -8 -8 -8 -8 -7 -7 -7 -7 -6 -6 -6 -6 -6 -6 -5 -5 -5 -5 -5 -5 -4 -4 -4 -3 -3 -3 -2 -2 -2 -1 -1 ---------- Run | Yrd Mat Min Mat Min Exi Min Mat Gar Mat Gar Fac Low Low Dat Pro Fac Ext Cet Arc Hub Fac Was Fac Upp Upp War Pro Fac DSF Res Gar Arm Res Gar Res Acc Com Machines Disabled 76 | . . . 3 . . . 1 5 1 11 4 2 . . . 1 2 . 3 7 2 . 3 . . . . 1 . 1 3 11 . 10 . 2 3 Max in Single Turn 2 | . . . 1 . . . 1 1 1 2 1 1 . . . 1 1 . 1 2 1 . 2 . . . . 1 . 1 1 1 . 2 . 1 2 Garrison Access 3 | . . . . . . . . . . . . . . . . . . . . . . . 1 . . . . . . . . . . . . 2 . Garrison Relay 22 | . . . . . . . . 5 . 8 . . . . . . . . . . . . . . . . . . . . 3 . . 6 . . . Phase Generator 2 | . . . . . . . . . . . . . . . . . . . . . . . . . . . . . . . . . . 1 . . 1 Network Hub 2 | . . . . . . . . . . . . . . . . . . . . 2 . . . . . . . . . . . . . . . . . Energy Cycler 1 | . . . . . . . . . . . . . . . . . . . . . . . . . . . . . . . . . . . . 1 . Machines Repaired . | . . . . . . . . . . . . . . . . . . . . . . . . . . . . . . . . . . . . . . Machines Dismantled . | . . . . . . . . . . . . . . . . . . . . . . . . . . . . . . . . . . . . . . Machines Sabotaged . | . . . . . . . . . . . . . . . . . . . . . . . . . . . . . . . . . . . . . . Overloaded Fab Kills . | . . . . . . . . . . . . . . . . . . . . . . . . . . . . . . . . . . . . . . Hacking | -11 -10 -10 -9 -9 -9 -8 -8 -8 -8 -8 -7 -7 -7 -7 -6 -6 -6 -6 -6 -6 -5 -5 -5 -5 -5 -5 -4 -4 -4 -3 -3 -3 -2 -2 -2 -1 -1 --------- Run | Yrd Mat Min Mat Min Exi Min Mat Gar Mat Gar Fac Low Low Dat Pro Fac Ext Cet Arc Hub Fac Was Fac Upp Upp War Pro Fac DSF Res Gar Arm Res Gar Res Acc Com Machines Accessed 122 | . 8 1 12 . 2 . 15 2 11 3 5 . 1 3 . 5 8 1 . 2 7 . 7 . . 2 . 3 . 8 1 1 2 1 2 4 5 Terminals 74 | . 6 1 7 . . . 8 2 7 3 4 . . . . 4 7 1 . 2 3 . 4 . . . . 2 . 3 1 . 1 1 2 1 4 Fabricators 1 | . . . . . . . . . . . . . . . . . . . . . 1 . . . . . . . . . . . . . . . . Repair Stations 11 | . 1 . 1 . . . 2 . 2 . 1 . . . . . . . . . 1 . 1 . . . . . . 1 . . . . . . 1 Recycling Units 12 | . 1 . 2 . . . 2 . . . . . . . . . 1 . . . 2 . . . . . . 1 . 2 . 1 . . . . . Scanalyzers 8 | . . . 2 . . . 2 . 1 . . . . . . . . . . . . . 1 . . . . . . 1 . . . . . 1 . Garrison Access 8 | . . . . . . . 1 . 1 . . . . . . 1 . . . . . . 1 . . . . . . 1 . . 1 . . 2 . Total Hacks 404 | . 31 3 35 . 2 . 46 4 54 5 11 . 1 18 . 8 27 1 . 11 46 . 25 . . 5 . 5 . 20 1 1 7 1 5 9 22 Successful 240 | . 20 . 23 . 2 . 30 1 37 2 4 . 1 18 . 1 15 1 . 7 21 . 12 . . 5 . 2 . 13 1 1 5 1 1 5 11 Failed 162 | . 10 3 12 . . . 16 3 16 3 7 . . . . 7 12 . . 4 25 . 13 . . . . 3 . 7 . . 2 . 4 4 11 Catastrophic 26 | . 1 1 2 . . . 1 1 1 1 1 . . . . 3 3 . . . 3 . 2 . . . . . . 2 . . . . . 1 3 Database Lockouts 2 | . 1 . . . . . . . 1 . . . . . . . . . . . . . . . . . . . . . . . . . . . . Manual 169 | . 18 3 23 . 1 . 28 . 25 . 6 . . . . 6 16 1 . 5 13 . 7 . . 1 . 1 . 5 . . 1 . . . 9 Terminals 241 | . 19 3 22 . . . 29 4 30 5 9 . . . . 6 23 1 . 11 16 . 13 . . . . 3 . 13 1 . 6 1 5 1 20 Fabricators 4 | . . . . . . . . . . . . . . . . . . . . . 4 . . . . . . . . . . . . . . . . Repair Stations 74 | . 9 . 4 . . . 8 . 21 . 2 . . . . . . . . . 21 . 5 . . . . . . 2 . . . . . . 2 Recycling Units 26 | . 3 . 5 . . . 4 . . . . . . . . . 4 . . . 5 . . . . . . 2 . 2 . 1 . . . . . Scanalyzers 19 | . . . 4 . . . 4 . 2 . . . . . . . . . . . . . 5 . . . . . . 2 . . . . . 2 . Garrison Access 14 | . . . . . . . 1 . 1 . . . . . . 2 . . . . . . 2 . . . . . . 1 . . 1 . . 6 . Terminal Hacks 91 | . 3 . 4 . 2 . 8 1 6 2 . . 1 18 . . 8 1 . 4 4 . 4 . . 5 . 1 . 4 1 . 3 1 1 1 8 Record 5 | . . . . . 1 . . . . . . . . 2 . . 1 . . . . . . . . . . . . . . . . . . . 1 Part Schematic 8 | . . . . . . . . . . . . . . 8 . . . . . . . . . . . . . . . . . . . . . . . Robot Schematic 5 | . . . . . . . . . . . . . . 5 . . . . . . . . . . . . . . . . . . . . . . . Robot Analysis 10 | . 2 . 1 . . . 3 . . . . . . . . . 2 . . 2 . . . . . . . . . . . . . . . . . Prototype ID Bank 12 | . 1 . . . . . 2 . 1 . . . . 3 . . 1 . . . . . . . . 4 . . . . . . . . . . . Open Door 3 | . . . . . . . . . . . . . 1 . . . . 1 . . . . . . . 1 . . . . . . . . . . . Open DSF 2 | . . . . . . . . . . . . . . . . . . . . . . . . . . . . 1 . 1 . . . . . . . Level Access Points 1 | . . . . . . . . . . . . . . . . . . . . . . . . . . . . . . . . . . . 1 . . Branch Access Points 4 | . . . . . . . . . . . . . . . . . . . . . 1 . 1 . . . . . . . . . 1 . . 1 . Emergency Access Points 4 | . . . . . . . . 1 . . . . . . . . . . . 1 . . . . . . . . . . 1 . . 1 . . . Machine Index 1 | . . . . . . . . . . . . . . . . . . . . . . . . . . . . . . . . . 1 . . . . Terminal Index 3 | . . . . . . . 1 . . . . . . . . . . . . . . . 1 . . . . . . . . . . . . . 1 Alert Level 6 | . . . . . . . . . . . . . . . . . 2 . . . 1 . . . . . . . . 1 . . . . . . 2 Unreport Threat 10 | . . . 2 . . . 2 . 2 . . . . . . . 1 . . . 1 . . . . . . . . 1 . . . . . . 1 Locate Traps 4 | . . . 1 . . . . . 1 . . . . . . . 1 . . . . . . . . . . . . . . . . . . . 1 Recall Investigation 1 | . . . . . . . . . 1 . . . . . . . . . . . . . . . . . . . . . . . . . . . . Hauler Manifests 1 | . . . . . . . . . 1 . . . . . . . . . . . . . . . . . . . . . . . . . . . . Registered Components 1 | . . . . . . . . . . . . . . . . . . . . . . . 1 . . . . . . . . . . . . . . Registered Prototypes 1 | . . . . . . . . . . . . . . . . . . . . . . . . . . . . . . . . . . . . . 1 Zone Layout 5 | . . . . . . . . . . . . . . . . . . . . 1 1 . 1 . . . . . . 1 . . 1 . . . . Garrison Registry 1 | . . . . . . . . . . 1 . . . . . . . . . . . . . . . . . . . . . . . . . . . Patrol Navigation 1 | . . . . . . . . . . 1 . . . . . . . . . . . . . . . . . . . . . . . . . . . Proto ID Catalog 1 | . . . . . 1 . . . . . . . . . . . . . . . . . . . . . . . . . . . . . . . . Disengage Seal 1 | . . . . . . . . . . . . . . . . . . . . . . . . . . . . . . . . . . . . . 1 Fabricator Hacks 2 | . . . . . . . . . . . . . . . . . . . . . 2 . . . . . . . . . . . . . . . . Load Schematic 1 | . . . . . . . . . . . . . . . . . . . . . 1 . . . . . . . . . . . . . . . . Build 1 | . . . . . . . . . . . . . . . . . . . . . 1 . . . . . . . . . . . . . . . . Repair Station Hacks 53 | . 7 . 4 . . . 7 . 19 . 2 . . . . . . . . . 9 . 3 . . . . . . 1 . . . . . . 1 Scan Component 30 | . 4 . 2 . . . 4 . 10 . 1 . . . . . . . . . 5 . 2 . . . . . . 1 . . . . . . 1 Repair 23 | . 3 . 2 . . . 3 . 9 . 1 . . . . . . . . . 4 . 1 . . . . . . . . . . . . . . Recycling Unit Hacks 11 | . 1 . 1 . . . 1 . . . . . . . . . 1 . . . 3 . . . . . . 1 . 2 . 1 . . . . . Retrieve Components 11 | . 1 . 1 . . . 1 . . . . . . . . . 1 . . . 3 . . . . . . 1 . 2 . 1 . . . . . Scanalyzer 11 | . . . 2 . . . 1 . 2 . . . . . . . . . . . . . 2 . . . . . . 2 . . . . . 2 . Insert Component 1 | . . . . . . . . . . . . . . . . . . . . . . . 1 . . . . . . . . . . . . . . Retrieve Study 10 | . . . 2 . . . 1 . 2 . . . . . . . . . . . . . 1 . . . . . . 2 . . . . . 2 . Garrison Access Hacks 7 | . . . . . . . 1 . 1 . . . . . . . . . . . . . 1 . . . . . . 1 . . 1 . . 2 . Unlock Access 4 | . . . . . . . 1 . 1 . . . . . . . . . . . . . . . . . . . . 1 . . 1 . . . . Seal Access 3 | . . . . . . . . . . . . . . . . . . . . . . . 1 . . . . . . . . . . . . 2 . Unauthorized Hacks 65 | . 9 . 12 . . . 12 . 9 . 2 . . . . 1 6 . . 3 3 . 2 . . . . . . 3 . . 1 . . . 2 Terminals 57 | . 8 . 10 . . . 10 . 9 . 2 . . . . 1 4 . . 3 2 . 2 . . . . . . 3 . . 1 . . . 2 Assimilate 7 | . . . 1 . . . 3 . 1 . . . . . . . . . . . . . 1 . . . . . . . . . . . . . 1 Botnet 26 | . 2 . 4 . . . 2 . 3 . 2 . . . . 1 3 . . 2 2 . 1 . . . . . . 2 . . 1 . . . 1 Disrupt 1 | . . . . . . . . . . . . . . . . . . . . 1 . . . . . . . . . . . . . . . . . Operators 2 | . 1 . 1 . . . . . . . . . . . . . . . . . . . . . . . . . . . . . . . . . . Skim 21 | . 5 . 4 . . . 5 . 5 . . . . . . . 1 . . . . . . . . . . . . 1 . . . . . . . Fabricators . | . . . . . . . . . . . . . . . . . . . . . . . . . . . . . . . . . . . . . . Repair Stations . | . . . . . . . . . . . . . . . . . . . . . . . . . . . . . . . . . . . . . . Recycling Units 8 | . 1 . 2 . . . 2 . . . . . . . . . 2 . . . 1 . . . . . . . . . . . . . . . . Reject 2 | . . . . . . . 1 . . . . . . . . . 1 . . . . . . . . . . . . . . . . . . . . Recyclers 3 | . . . . . . . 1 . . . . . . . . . 1 . . . 1 . . . . . . . . . . . . . . . . Tunnel 3 | . 1 . 2 . . . . . . . . . . . . . . . . . . . . . . . . . . . . . . . . . . Scanalyzers . | . . . . . . . . . . . . . . . . . . . . . . . . . . . . . . . . . . . . . . Garrison Access . | . . . . . . . . . . . . . . . . . . . . . . . . . . . . . . . . . . . . . . Data Cores Recovered 2 | . . . . . . . . . . . . . . . . . . . . . . . . . . . . . . . . 2 . . . . . Used . | . . . . . . . . . . . . . . . . . . . . . . . . . . . . . . . . . . . . . . Hacking Detections 93 | . 7 1 10 . . . 13 2 9 3 5 . . . . 5 8 1 . 2 6 . 5 . . . . 2 . 5 . . 1 . 2 2 4 Full Trace Events 5 | . . . 1 . . . . 1 . 1 . . . . . . . . . . 1 . . . . . . . . . . . . . 1 . . Feedback Events 1 | . . . . . . . . . . . . . . . . . . . . . . . . . . . . . . . . . . . 1 . . Hackware Fried 1 | . . . . . . . . . . . . . . . . . . . . . . . . . . . . . . . . . . . 1 . . Feedback Blocked . | . . . . . . . . . . . . . . . . . . . . . . . . . . . . . . . . . . . . . . Robot Schematics Acquired 5 | . . . . . . . . . . . . . . 5 . . . . . . . . . . . . . . . . . . . . . . . Robots Built . | . . . . . . . . . . . . . . . . . . . . . . . . . . . . . . . . . . . . . . Authchips . | . . . . . . . . . . . . . . . . . . . . . . . . . . . . . . . . . . . . . . Time . | . . . . . . . . . . . . . . . . . . . . . . . . . . . . . . . . . . . . . . Total Robot Build Rating . | . . . . . . . . . . . . . . . . . . . . . . . . . . . . . . . . . . . . . . Part Schematics Acquired 8 | . . . . . . . . . . . . . . 8 . . . . . . . . . . . . . . . . . . . . . . . Parts Built . | . . . . . . . . . . . . . . . . . . . . . . . . . . . . . . . . . . . . . . Authchips . | . . . . . . . . . . . . . . . . . . . . . . . . . . . . . . . . . . . . . . Time 106 | . . . . . . . . . . . . . . . . . . . . . 106 . . . . . . . . . . . . . . . . Total Part Build Rating . | . . . . . . . . . . . . . . . . . . . . . . . . . . . . . . . . . . . . . . Part Studies Acquired 10 | . . . 2 . . . 1 . 2 . . . . . . . . . . . . . 1 . . . . . . 2 . . . . . 2 . Parts Repaired 23 | . 3 . 2 . . . 3 . 9 . 1 . . . . . . . . . 4 . 1 . . . . . . . . . . . . . . Time 964 | . 78 . 76 . . . 129 . 348 . 38 . . . . . . . . . 227 . 68 . . . . . . . . . . . . . . Parts Recycled . | . . . . . . . . . . . . . . . . . . . . . . . . . . . . . . . . . . . . . . Recycled Matter . | . . . . . . . . . . . . . . . . . . . . . . . . . . . . . . . . . . . . . . Retrieved Matter . | . . . . . . . . . . . . . . . . . . . . . . . . . . . . . . . . . . . . . . Retrieved Components 35 | . 2 . 10 . . . 1 . . . . . . . . . 9 . . . 2 . . . . . . . . 11 . . . . . . . Parts Scanalyzed 1 | . . . . . . . . . . . . . . . . . . . . . . . 1 . . . . . . . . . . . . . . Part Schematics Acquired . | . . . . . . . . . . . . . . . . . . . . . . . . . . . . . . . . . . . . . . Parts Damaged 1 | . . . . . . . . . . . . . . . . . . . . . . . 1 . . . . . . . . . . . . . . Bothacking | -11 -10 -10 -9 -9 -9 -8 -8 -8 -8 -8 -7 -7 -7 -7 -6 -6 -6 -6 -6 -6 -5 -5 -5 -5 -5 -5 -4 -4 -4 -3 -3 -3 -2 -2 -2 -1 -1 ------------ Run | Yrd Mat Min Mat Min Exi Min Mat Gar Mat Gar Fac Low Low Dat Pro Fac Ext Cet Arc Hub Fac Was Fac Upp Upp War Pro Fac DSF Res Gar Arm Res Gar Res Acc Com Used RIF Installer . | . . . . . . . . . . . . . . . . . . . . . . . . . . . . . . . . . . . . . . Robots Hacked . | . . . . . . . . . . . . . . . . . . . . . . . . . . . . . . . . . . . . . . Non-combat . | . . . . . . . . . . . . . . . . . . . . . . . . . . . . . . . . . . . . . . Combat . | . . . . . . . . . . . . . . . . . . . . . . . . . . . . . . . . . . . . . . Robot Hacks Applied . | . . . . . . . . . . . . . . . . . . . . . . . . . . . . . . . . . . . . . . Relay Couplers Released 87 | . . . . . . . . 23 . 30 . . . . . . . . . . . . . . . . . . . . 12 . . 22 . . . Machine Destruction 87 | . . . . . . . . 23 . 30 . . . . . . . . . . . . . . . . . . . . 12 . . 22 . . . Fabnet Peak Effective % . | . . . . . . . . . . . . . . . . . . . . . . . . . . . . . . . . . . . . . . Robots Rewired 35 | . . . . . . . . . . . . . 1 . . . 18 . . . . . . 2 . . . . . . . 5 . 9 . . . Allies Hacked 2 | . . . . . . . . . . . . . . . . . . . . . . . . . . . . . . . . 2 . . . . . Hacks Repelled . | . . . . . . . . . . . . . . . . . . . . . . . . . . . . . . . . . . . . . . Allies | -11 -10 -10 -9 -9 -9 -8 -8 -8 -8 -8 -7 -7 -7 -7 -6 -6 -6 -6 -6 -6 -5 -5 -5 -5 -5 -5 -4 -4 -4 -3 -3 -3 -2 -2 -2 -1 -1 -------- Run | Yrd Mat Min Mat Min Exi Min Mat Gar Mat Gar Fac Low Low Dat Pro Fac Ext Cet Arc Hub Fac Was Fac Upp Upp War Pro Fac DSF Res Gar Arm Res Gar Res Acc Com Total Allies 65 | . . . 1 . . . 2 . . . . . 3 . 1 . 31 5 . . . . 1 2 . . . . . . . 10 . 9 . . . Largest Group 26 | . . . 1 1 1 1 3 . . . . . 2 . 1 . 26 20 10 5 . . 1 2 2 . . . . . . 4 . 9 9 . . Highest-Rated Group 918 | . . . 10 10 10 10 30 . . . . . 64 . 96 . 918 749 678 266 . . 10 79 79 . . . . . . 388 . 538 538 . . Highest-Rated Ally 159 | . . . 10 10 10 10 10 . . . . . 64 . 96 . 159 159 159 96 . . 10 49 49 . . . . . . 142 . 119 119 . . Initial Warlord ECA Mod 29 | . . . . . . . . . 7 7 18 18 18 18 17 17 17 17 17 17 16 15 15 15 15 15 14 14 14 13 13 18 17 17 29 28 28 Warlord Squad Rendezvous 1 | . . . . . . . . . . . . . . . . . . . . . 1 . . . . . . . . . . . . . . . . Pyro 1 | . . . . . . . . . . . . . . . . . . . . . 1 . . . . . . . . . . . . . . . . Total Orders 31 | . . . 2 2 . . 4 . . . . . . . . . 10 8 . 2 . . 1 . . . . . . . . . . 2 . . . STAY 17 | . . . 1 1 . . 3 . . . . . . . . . 5 4 . 1 . . 1 . . . . . . . . . . 1 . . . ROAM 4 | . . . . . . . . . . . . . . . . . 1 2 . 1 . . . . . . . . . . . . . . . . . FOLLOW 10 | . . . 1 1 . . 1 . . . . . . . . . 4 2 . . . . . . . . . . . . . . . 1 . . . Ally Attacks 469 | . . . . . . . . . . . . . . . 12 . 132 87 23 16 . . . . 14 . . . . . 38 105 . . 42 . . Total Damage 11857 | . . . . . . . . . . . . . . . 271 . 2394 1572 895 470 . . . . 428 . . . . . 689 3981 . . 1157 . . Kills 67 | . . . . . . . . . . . . . . . 1 . 19 7 4 3 . . . . 3 . . . . . 1 25 . . 4 . . Allies Corrupted 3 | . . . . . . . . . . . . . . . . . . . . . . . . . . . . . . . . 3 . . . . . Allies Melted 4 | . . . . . . . . . . . . . . . 1 . 1 . . . . . . . . . . . . . . . 2 . . . . Field Lobotomies 4 | . . . . . . . . . . . . . . . . . . . . . . . . . . . . . . . . 4 . . . . . Intel | -11 -10 -10 -9 -9 -9 -8 -8 -8 -8 -8 -7 -7 -7 -7 -6 -6 -6 -6 -6 -6 -5 -5 -5 -5 -5 -5 -4 -4 -4 -3 -3 -3 -2 -2 -2 -1 -1 ------- Run | Yrd Mat Min Mat Min Exi Min Mat Gar Mat Gar Fac Low Low Dat Pro Fac Ext Cet Arc Hub Fac Was Fac Upp Upp War Pro Fac DSF Res Gar Arm Res Gar Res Acc Com Active Infowar (turns) 23861 | 26 1327 . 871 . . . . . . . . 307 184 135 1128 717 2450 219 224 319 108 . 1557 2747 1445 983 868 399 285 487 268 924 1169 1163 379 2341 831 Optics 1132 | . . . . . . . . . . . . . . . . . . . . . . . . . . . . . . . 268 864 . . . . . Sensors 8365 | . . . . . . . . . . . . . 184 135 1128 717 299 . . . 62 . . 2735 1445 974 686 . . . . . . . . . . IFF 194 | . . . . . . . . . . . . . . . . . . . . . . . . . . . . . . . 170 24 . . . . . Terrain 9130 | . . . . . . . . . . . . 307 182 135 84 391 71 219 224 319 46 . 1447 1754 1445 979 810 399 45 . . . . . . . 273 Structural 2 | . . . . . . . . . . . . . . . . . . . . . . . . . . . . . . . . . . . . 2 . Traps 3068 | . . . . . . . . . . . . . . . . 619 2449 . . . . . . . . . . . . . . . . . . . . Seismic 2224 | 26 1327 . 871 . . . . . . . . . . . . . . . . . . . . . . . . . . . . . . . . . . Machine Analysis 5670 | . . . . . . . . . . . . . . . . . . . . . . . . . . . . . . . . 60 1169 1163 379 2341 558 Jamming 2392 | . . . . . . . . . . . . . . . 14 . . . . . . . 215 993 . . . 398 285 487 . . . . . . . Robot Analysis Total 10 | . 2 . 1 . . . 3 . . . . . . . . . 2 . . 2 . . . . . . . . . . . . . . . . . Derelict Logs Recovered 9 | . . . . 3 . . . . . . . 1 1 . 1 . . . . . . . . 2 1 . . . . . . . . . . . . Drone Launches 4 | . . . . . . . . . . . . . . . . . . . . . . . . . . . . . . . 4 . . . . . . Drone Recoveries . | . . . . . . . . . . . . . . . . . . . . . . . . . . . . . . . . . . . . . . Exploration | -11 -10 -10 -9 -9 -9 -8 -8 -8 -8 -8 -7 -7 -7 -7 -6 -6 -6 -6 -6 -6 -5 -5 -5 -5 -5 -5 -4 -4 -4 -3 -3 -3 -2 -2 -2 -1 -1 ------------- Run | Yrd Mat Min Mat Min Exi Min Mat Gar Mat Gar Fac Low Low Dat Pro Fac Ext Cet Arc Hub Fac Was Fac Upp Upp War Pro Fac DSF Res Gar Arm Res Gar Res Acc Com Turns Passed 52925 | 167 1806 586 2906 1088 372 49 3567 1401 1890 1564 1465 6242 2018 135 1128 717 2450 751 224 340 1155 235 1937 2747 1445 983 868 399 285 1441 1581 1856 1169 1163 379 2369 2047 Spaces Moved 22980 | 77 766 331 1249 609 227 24 1554 666 719 648 534 1673 999 78 581 433 937 350 56 171 389 105 821 1318 837 550 372 211 145 809 739 775 602 646 187 847 945 Core 235 | 2 . . . . . . . . . . . 230 1 . 2 . . . . . . . . . . . . . . . . . . . . . . Treads 16299 | 75 766 331 1249 609 227 24 1554 666 719 648 506 . . . . . . 291 56 171 389 105 821 1318 837 550 372 211 71 . 4 694 410 646 187 847 945 Legs 97 | . . . . . . . . . . . . 8 . . . 1 88 . . . . . . . . . . . . . . . . . . . . Wheels 6349 | . . . . . . . . . . . 28 1435 998 78 579 432 849 59 . . . . . . . . . . 74 809 735 81 192 . . . . Hover . | . . . . . . . . . . . . . . . . . . . . . . . . . . . . . . . . . . . . . . Flight . | . . . . . . . . . . . . . . . . . . . . . . . . . . . . . . . . . . . . . . Fastest Speed 50 | 50 160 160 160 160 160 165 164 168 170 166 150 116 175 175 175 107 110 150 160 160 160 160 160 160 160 160 160 160 130 130 130 130 130 166 166 152 150 Average Speed 175 | 157 160 161 160 160 162 165 167 169 170 169 187 349 179 175 179 133 176 158 160 160 160 160 160 160 160 160 160 160 146 131 131 157 165 166 166 163 152 Slowest Speed 1550 | 160 160 240 160 160 165 165 168 250 170 170 247 1450 1550 175 1500 250 260 240 160 160 160 160 160 160 160 160 160 160 270 290 270 240 330 166 166 232 232 Overloaded Moves . | . . . . . . . . . . . . . . . . . . . . . . . . . . . . . . . . . . . . . . Propulsion Burnouts . | . . . . . . . . . . . . . . . . . . . . . . . . . . . . . . . . . . . . . . Robots Hopped 1 | . . . . . . . . . . . . . . . . . . 1 . . . . . . . . . . . . . . . . . . . Potential Cave-ins 56 | . . . . . . . 2 . . . 2 . . . . 5 . . . . . . . 2 . . 23 . . . 18 1 . . . 3 . Cave-ins Triggered 2 | . . . . . . . . . . . . . . . . . . . . . . . . . . . 1 . . . . . . . . 1 . Exploration Rate (%) 55 | 5 97 55 96 98 61 11 89 77 63 83 16 95 70 68 67 10 85 65 65 28 9 73 28 89 95 76 50 7 88 32 59 36 16 97 4 27 32 Regions Visited 37 Branch Regions 18 Pre-discovered Areas 7 | . 1 . 2 1 1 . . . . . . 1 . 1 . . . . . . . . . . . . . . . . . . . . . . . Known Exits Taken 18 | . . 1 . . . . 1 . 1 . 1 . . . 1 . 1 . . 1 . . 1 1 1 1 1 1 . 1 . 1 1 . 1 1 . Unknown Exits Taken 12 | 1 1 . 1 1 1 1 . . . . . 1 1 1 . 1 . 1 1 . . . . . . . . . . . . . . . . . . Scrap Searched 12 | . . . . 2 . . . . . . . 3 3 . . . . . . . . . . 2 . . 2 . . . . . . . . . . Spaces Dug 200 | . . . 2 . . . 14 . . 1 5 . . . . 4 7 . . 1 4 . 30 56 4 . 11 1 . 12 17 7 . . . 19 5 Terrain Destroyed 2248 | . . . 68 15 . . 51 25 10 46 124 72 2 . 43 22 18 . 4 341 40 198 67 188 38 90 52 2 13 76 70 211 1 141 1 90 129 Melee 40 | . . . . . . . 3 . . 1 . . . . . . 3 . . . . . 13 5 . . 1 . . 2 . 5 . . . 6 1 Projectile 509 | . . . 46 13 . . 40 . 10 2 50 7 2 . . 13 15 . 4 11 18 . 29 62 11 . 22 2 1 15 53 24 1 . . 20 38 AOE 1648 | . . . 22 2 . . 8 25 . 43 74 65 . . 43 9 . . . 330 21 198 25 121 27 90 29 . 12 59 14 182 . 141 . 24 84 Terrain Rammed . | . . . . . . . . . . . . . . . . . . . . . . . . . . . . . . . . . . . . . . Walls Destroyed . | . . . . . . . . . . . . . . . . . . . . . . . . . . . . . . . . . . . . . . Machines Disabled . | . . . . . . . . . . . . . . . . . . . . . . . . . . . . . . . . . . . . . . Actions | -11 -10 -10 -9 -9 -9 -8 -8 -8 -8 -8 -7 -7 -7 -7 -6 -6 -6 -6 -6 -6 -5 -5 -5 -5 -5 -5 -4 -4 -4 -3 -3 -3 -2 -2 -2 -1 -1 --------- Run | Yrd Mat Min Mat Min Exi Min Mat Gar Mat Gar Fac Low Low Dat Pro Fac Ext Cet Arc Hub Fac Was Fac Upp Upp War Pro Fac DSF Res Gar Arm Res Gar Res Acc Com Total 32004 | 103 1202 356 1878 665 231 34 2298 792 1278 904 823 1960 1140 77 649 518 1586 490 166 203 860 134 1339 1823 916 636 609 269 199 1077 1146 1197 778 719 240 1396 1313 Wait 5493 | 8 328 6 409 24 2 11 581 34 480 95 152 170 29 . 45 17 274 48 87 10 411 1 407 366 55 52 199 36 9 97 201 171 118 15 44 299 202 Move 22942 | 76 765 330 1248 608 226 23 1554 665 719 647 533 1672 998 77 580 432 936 347 55 170 389 104 820 1317 836 549 370 210 144 808 737 774 601 645 186 846 945 Hop 1 | . . . . . . . . . . . . . . . . . . 1 . . . . . . . . . . . . . . . . . . . Pick Up 285 | 3 12 2 15 1 1 . 12 2 4 7 14 12 9 . . 6 22 13 4 . 7 . 8 3 1 5 1 3 8 21 13 31 9 5 1 15 15 Fast Attach 240 | 7 5 1 9 . . . 6 . 10 4 7 4 5 . 1 12 15 11 1 . 6 2 8 . . 4 1 4 10 18 28 26 10 1 . 11 13 Attach 134 | . . 2 2 . 2 . 5 2 1 3 5 15 5 . 1 2 2 2 2 . 2 . 3 . 1 . 3 5 3 10 9 19 8 1 1 12 6 Detach 42 | . . . 2 . . . 1 . . 1 3 3 4 . . 2 . 1 . . 1 . . . . . . 5 . 3 3 3 9 . . 1 . Swap 286 | 1 8 . 20 2 . . 4 4 4 14 16 12 5 . 6 5 28 8 . 4 8 3 18 20 5 3 6 1 1 15 12 8 3 1 1 27 13 Drop 346 | . 9 2 28 . . . 9 1 7 9 1 8 2 . 2 9 31 30 5 . 6 2 14 3 1 9 1 2 13 38 17 32 18 5 1 6 25 Fire 1743 | 8 72 13 143 29 . . 118 80 53 92 90 46 80 . 13 28 60 29 12 19 30 22 45 91 17 14 26 3 11 56 106 74 2 3 6 160 92 Melee 184 | . . . . . . . 7 . . 32 . 18 . . . 5 11 . . . . . 15 11 . . 1 . . 2 12 41 . 8 . 19 2 Ram 2 | . . . . . . . . . . . . . . . . . 1 . . . . . . . . . . . . 1 . . . . . . . Kick . | . . . . . . . . . . . . . . . . . . . . . . . . . . . . . . . . . . . . . . Crush 15 | . 3 . 2 1 . . 1 2 . . 2 . . . . . . . . . . . 1 . . . . . . . . 3 . . . . . Escape Stasis 28 | . . . . . . . . 2 . . . . . . . . 8 . . . . . . . . . 1 . . 8 8 1 . . . . . Rewire 258 | . . . . . . . . . . . . . 3 . . . 194 . . . . . . 12 . . . . . . . 14 . 35 . . . Trap 5 | . . . . . . . . . . . . . . . 1 . 4 . . . . . . . . . . . . . . . . . . . . Miscellaneous . | . . . . . . . . . . . . . . . . . . . . . . . . . . . . . . . . . . . . . . Route ------- -11/Scrapyard -10/Materials (discovered 6 exits: *Mat x3 / *Min x2 / Sub) -10/Mines (discovered 2 exits: *Mat x2) -9/Materials (discovered 5 exits: *Mat x3 / [*Min x2]) -9/Mines (discovered 3 exits: *Mat x2 / *Exi) -9/Exiles -8/Mines -8/Materials (discovered 6 exits: *Fac x3 / *Sto x2 / Gar) -8/Garrison (discovered 3 exits: *Mat x3) -8/Materials (discovered 5 exits: *Fac x3 / *Sto / Gar) -8/Garrison (discovered 3 exits: *Fac x3) -7/Factory (discovered 5 exits: Fac x3 / *Low x2) -7/Lower Caves -7/Lower Caves (discovered 2 exits: *Fac / *Dat) -7/Data Miner -6/Proximity Caves -6/Factory (discovered 2 exits: *Fac / *Ext) -6/Extension (discovered 2 exits: *Fac / *Cet) -6/Cetus (discovered 2 exits: *Fac / [*Arc]) -6/Archives -6/Hub_04(d) -5/Factory (discovered 2 exits: Upp x2) -5/Waste -5/Factory (discovered 4 exits: *Fac x2 / *Upp x2) -5/Upper Caves -5/Upper Caves (discovered 2 exits: *Fac / *War) -5/Warlord -4/Proximity Caves -4/Factory (discovered 3 exits: Res / [*Upp] / DSF) -4/DSF -3/Research (discovered 3 exits: *Res / [*Qua] / Gar) -3/Garrison (discovered 2 exits: *Arm x2) -3/Armory -2/Research (discovered 3 exits: Tes x2 / Gar) -2/Garrison (discovered 3 exits: *Res x3) -2/Research (discovered 3 exits: *Acc x3) -1/Access -1/Command History --------- Turn | Location | Event 2 | -11/Scrapyard | Met Revision 17 24 | -11/Scrapyard | Discovered new exit (range 15) 168 | -11/Scrapyard | Entered Materials 302 | -10/Materials | Build established: Mutant 568 | -10/Materials | Discovered new exit (range 15) 777 | -10/Materials | Discovered new exit (range 14) 779 | -10/Materials | Discovered new exit (range 16) 1010 | -10/Materials | Repaired Mining Laser 1037 | -10/Materials | Repaired Lgt. Treads 1068 | -10/Materials | Repaired Lgt. Treads 1350 | -10/Materials | Discovered new exit (range 3) 1399 | -10/Materials | Core integrity fell below 50% 1560 | -10/Materials | Discovered new exit (range 14) 1595 | -10/Materials | Central database locked down 1724 | -10/Materials | Learned Storage emergency access door positions 1773 | -10/Materials | Learned 4 Recycling zone layouts 1814 | -10/Materials | Learned location of 1 exit from Recycling 1888 | -10/Materials | Learned Storage emergency access door positions 1939 | -10/Materials | Identified exit to Subcaves 1974 | -10/Materials | Entered Mines 1975 | -10/Mines | Identified exit to Materials 1981 | -10/Mines | Received a Rocket Launcher from a helpful Derelict 2336 | -10/Mines | Found a hidden stash of uninstalled traps 2455 | -10/Mines | Assembled infested the area 2476 | -10/Mines | Core integrity fell below 20% 2560 | -10/Mines | Entered Materials 2560 | -9/Materials | Evolved 2 slots: Propulsion x2 2657 | -9/Materials | Discovered new exit (range 11) 2943 | -9/Materials | Destroyed 7 combat bots 3204 | -9/Materials | Discovered new exit (range 10) 3608 | -9/Materials | Discovered new exit (range 8) 4095 | -9/Materials | Discovered new exit (range 16) 4160 | -9/Materials | First assault squad dispatched 4540 | -9/Materials | Discovered new exit (range 16) 4730 | -9/Materials | Build established: Scavenger-Mutant 5143 | -9/Materials | Repaired Assault Cannon 5183 | -9/Materials | Repaired Assault Cannon 5366 | -9/Materials | Sterilization system engaged 5366 | -9/Materials | Non-combat units ordered to evacuate 5466 | -9/Materials | Combat units ordered to evacuate 5466 | -9/Materials | Entered Mines 5466 | -9/Mines | Accompanied by 1 ally 5490 | -9/Mines | Met a Derelict bent on vengeance 5535 | -9/Mines | Discovered new exit (range 12) 5536 | -9/Mines | Learned location of Storage (-8) 5716 | -9/Mines | Found a damaged Exp. Sensor Array with a note attached 5720 | -9/Mines | Found Prototype Device 5793 | -9/Mines | Deemed a non-threat by the Exiles lab entrance 5858 | -9/Mines | Learned Materials stockpile data 5935 | -9/Mines | Learned Materials terminal intel 5981 | -9/Mines | Discovered new exit (range 15) 6091 | -9/Mines | Learned 2 Materials zone layouts 6131 | -9/Mines | Build established: Mutant 6536 | -9/Mines | Discovered new exit (range 5) 6554 | -9/Mines | Entered Exiles 6554 | -9/Exiles | Accompanied by 1 ally 6593 | -9/Exiles | Met 8R-AWN 6618 | -9/Exiles | Met EX-HEX 6668 | -9/Exiles | Met EX-BIN 6686 | -9/Exiles | Aligned with FarCom system 6687 | -9/Exiles | Given EX-Vault access code 6727 | -9/Exiles | Opened EX-Vault 6755 | -9/Exiles | Found Field Lobotomy Kit 6789 | -9/Exiles | Warned to stay clear of 0b10 Research branches 6840 | -9/Exiles | Met EX-DEC 6847 | -9/Exiles | Learned location of Zion (-6) 6908 | -9/Exiles | Discovered new exit (range 12) 6926 | -9/Exiles | Left Exiles lab with Field Lobotomy Kit 6926 | -9/Exiles | Entered Mines 6926 | -8/Mines | Accompanied by 1 ally 6945 | -8/Mines | Discovered new exit (range 10) 6975 | -8/Mines | Entered Materials 6975 | -8/Materials | Accompanied by 1 ally 6975 | -8/Materials | Evolved 2 slots: Propulsion x1, Utility x1 6978 | -8/Materials | Loaded intel: 11 terminal locations 8500 | -8/Materials | Repaired Assault Cannon 8514 | -8/Materials | Discovered new exit (range 3) 9660 | -8/Materials | Learned Factory stockpile data 9729 | -8/Materials | Discovered new exit (range 8) 9737 | -8/Materials | Learned Factory recycling unit intel 9790 | -8/Materials | Discovered new exit (range 3) 9803 | -8/Materials | Identified exit to Storage 9843 | -8/Materials | Repaired Arm. Treads 9859 | -8/Materials | Learned location of 1 exit from Extension 9897 | -8/Materials | Repaired Broken Arm. Treads 9904 | -8/Materials | Identified exit to Factory 9982 | -8/Materials | Learned Storage terminal intel 10485 | -8/Materials | Garrison activated, responded to threat 10542 | -8/Materials | Identified exit to Garrison 10542 | -8/Materials | Entered Garrison 10669 | -8/Garrison | Garrison Relay disabled 10880 | -8/Garrison | Triggered checkpoint 10925 | -8/Garrison | Discovered new exit (range 9) 10970 | -8/Garrison | Triggered checkpoint 11009 | -8/Garrison | Garrison Relay disabled 11110 | -8/Garrison | Triggered checkpoint 11276 | -8/Garrison | Triggered checkpoint 11352 | -8/Garrison | Garrison Relay disabled 11403 | -8/Garrison | Discovered new exit (range 4) 11682 | -8/Garrison | Triggered checkpoint 11758 | -8/Garrison | Garrison Relay disabled 11887 | -8/Garrison | Garrison Relay disabled 11900 | -8/Garrison | Triggered checkpoint 11912 | -8/Garrison | Discovered new exit (range 14) 11943 | -8/Garrison | Entered Materials 12179 | -8/Materials | Central database locked down 12342 | -8/Materials | Repaired Arm. Treads 12383 | -8/Materials | Repaired Assault Cannon+ 12423 | -8/Materials | Repaired Arm. Treads 12464 | -8/Materials | Repaired Arm. Treads 12503 | -8/Materials | Repaired Assault Cannon+ 12728 | -8/Materials | Discovered exit to Factory (range 10) 12881 | -8/Materials | Repaired Assault Cannon+ 12921 | -8/Materials | Repaired Arm. Treads 12960 | -8/Materials | Repaired Arm. Treads 13006 | -8/Materials | Repaired Imp. Medium Armor Plating 13099 | -8/Materials | Discovered exit to Storage (range 11) 13535 | -8/Materials | Discovered exit to Factory (range 8) 13674 | -8/Materials | Learned 4 Factory zone layouts 13709 | -8/Materials | Learned location of 2 exits from Factory 13734 | -8/Materials | Learned Storage trap positions 13750 | -8/Materials | Learned Factory emergency access door positions 13755 | -8/Materials | Learned location of 1 exit from Storage 13757 | -8/Materials | Learned 2 Storage zone layouts 13758 | -8/Materials | Learned Storage emergency access door positions 13766 | -8/Materials | Learned location of 1 exit from Recycling 13833 | -8/Materials | Identified exit to Garrison 13833 | -8/Materials | Entered Garrison 13895 | -8/Garrison | Triggered checkpoint 14056 | -8/Garrison | Garrison Relay disabled 14071 | -8/Garrison | Triggered checkpoint 14186 | -8/Garrison | Triggered checkpoint 14252 | -8/Garrison | Discovered exit to Factory (range 34) 14252 | -8/Garrison | Discovered exit to Factory (range 50) 14252 | -8/Garrison | Discovered exit to Factory (range 68) 14368 | -8/Garrison | Garrison Relay disabled 14445 | -8/Garrison | Triggered checkpoint 14452 | -8/Garrison | Triggered checkpoint 14494 | -8/Garrison | Destroyed 9 combat bots 14649 | -8/Garrison | Triggered checkpoint 14739 | -8/Garrison | Garrison Relay disabled 14804 | -8/Garrison | Garrison Relay disabled 14806 | -8/Garrison | Garrison Relay disabled 14810 | -8/Garrison | Garrison Relay disabled 14812 | -8/Garrison | Garrison Relay disabled 15169 | -8/Garrison | Triggered checkpoint 15335 | -8/Garrison | Garrison Relay disabled 15397 | -8/Garrison | Entered Factory 15397 | -7/Factory | Evolved 2 slots: Propulsion x1, Utility x1 15398 | -7/Factory | Identified exit to Lower Caves 15399 | -7/Factory | Identified exit to Factory 15403 | -7/Factory | Loaded intel: 6 recycling unit locations 15690 | -7/Factory | Build established: Scavenger-Mutant 15797 | -7/Factory | First assault squad dispatched 15813 | -7/Factory | Repaired Arm. Treads 15970 | -7/Factory | Destroyed 11 combat bots 16533 | -7/Factory | Build established: Mutant 16689 | -7/Factory | Garrison activated, responded to threat 16738 | -7/Factory | Lost 3 parts (2n1u) 16862 | -7/Factory | Entered Lower Caves 16881 | -7/Lower Caves | Met a Warlord Commander 16882 | -7/Lower Caves | Learned location of Warlord (-5) 16883 | -7/Lower Caves | Warlord Commander delivered Encrypted Comm Array 16890 | -7/Lower Caves | Found Encrypted Comm Array 17183 | -7/Lower Caves | Build established: Scavenger-Mutant 17234 | -7/Lower Caves | Lost 3 parts (2n1w) 17708 | -7/Lower Caves | Learned location of 1 exit from Factory 18001 | -7/Lower Caves | Build established: Mutant 18526 | -7/Lower Caves | Spotted B-75 Beast 18575 | -7/Lower Caves | Destroyed B-75 Beast 18597 | -7/Lower Caves | Lost 6 parts (1p3n1u1w) 18692 | -7/Lower Caves | Attracted the attention of an 0b10 checkpoint 18743 | -7/Lower Caves | Core integrity fell below 50% 18792 | -7/Lower Caves | Lost 5 parts (4n1u) 22680 | -7/Lower Caves | Discovered new exit (range 7) 23104 | -7/Lower Caves | Entered another Lower Caves area 23150 | -7/Lower Caves | Learned Factory terminal intel 23398 | -7/Lower Caves | Discovered exit to Factory (range 9) 24091 | -7/Lower Caves | Entered an active Warlord outpost 24097 | -7/Lower Caves | A Commander dispatched an escort 24541 | -7/Lower Caves | Discovered new exit (range 5) 24938 | -7/Lower Caves | Identified Exp. Sensor Array 25122 | -7/Lower Caves | Entered Data Miner 25122 | -7/Data Miner | Accompanied by 2 allies 25122 | -7/Data Miner | Discovered new exit (range 6) 25123 | -7/Data Miner | Commander's escort returned to base 25123 | -7/Data Miner | Commander's escort returned to base 25156 | -7/Data Miner | Met Data Miner 25187 | -7/Data Miner | Learned location of Section 7 (-3) 25187 | -7/Data Miner | Acquired the access code to Warlord's prototype stash 25213 | -7/Data Miner | Received God Mode back door access code from Data Miner 25257 | -7/Data Miner | Entered Proximity Caves 25340 | -6/Proximity Caves | Escorted by Enhanced Grunt 25346 | -6/Proximity Caves | Core integrity fell below 20% 25373 | -6/Proximity Caves | Learned 4 Factory zone layouts 25542 | -6/Proximity Caves | Spotter reported a threat 25677 | -6/Proximity Caves | Attracted the attention of an 0b10 checkpoint 25795 | -6/Proximity Caves | Discovered exit to Factory (range 4) 26385 | -6/Proximity Caves | Entered Factory 26385 | -6/Factory | Evolved 2 slots: Utility x1, Weapon x1 26386 | -6/Factory | Identified exit to Factory 26388 | -6/Factory | Loaded intel: 28 terminal locations 27058 | -6/Factory | Build established: Scavenger-Skirmisher 27092 | -6/Factory | Discovered new exit (range 10) 27102 | -6/Factory | Entered Extension 27103 | -6/Extension | Identified exit to Cetus 27824 | -6/Extension | Rescued a captive Derelict 27902 | -6/Extension | Disrupted transfer network 27957 | -6/Extension | Rescued a captive Derelict 28030 | -6/Extension | Rescued A7 28249 | -6/Extension | Rescued a captive Derelict 28788 | -6/Extension | Spotted B-75 Beast 28791 | -6/Extension | Destroyed B-75 Beast 28813 | -6/Extension | Lost 3 allies 28967 | -6/Extension | Rescued a captive Derelict 29025 | -6/Extension | Rescued a captive Derelict 29027 | -6/Extension | Rescued a captive Derelict 29062 | -6/Extension | Rescued a captive Derelict 29062 | -6/Extension | Rescued a captive Derelict 29090 | -6/Extension | Rescued a captive Derelict 29090 | -6/Extension | Rescued a captive Derelict 29155 | -6/Extension | Rescued a captive Derelict 29156 | -6/Extension | Rescued a captive Derelict 29402 | -6/Extension | Rescued a captive Derelict 29442 | -6/Extension | Discovered exit to Factory (range 10) 29547 | -6/Extension | Build established: Commander-Skirmisher 29552 | -6/Extension | First assault squad dispatched 29552 | -6/Extension | Entered Cetus 29552 | -6/Cetus | Accompanied by 20 allies (A7) 29557 | -6/Cetus | Acquired a Cetus Manufacturing Module code from A7 29625 | -6/Cetus | Spotted Cetus Guard 29628 | -6/Cetus | Spotted Cetus Guard 29628 | -6/Cetus | Spotted Cetus Guard 29631 | -6/Cetus | Spotted Cetus Guard 29635 | -6/Cetus | Allies destroyed Cetus Guard 29650 | -6/Cetus | Allies destroyed Cetus Guard 29657 | -6/Cetus | Allies destroyed Cetus Guard 29659 | -6/Cetus | Destroyed Cetus Guard 29693 | -6/Cetus | Lost 8 allies 29902 | -6/Cetus | Escorted A7 to Cetus Mainframe 29914 | -6/Cetus | Started Cetus Manufacturing Module 29933 | -6/Cetus | Discovered new exit (range 15) 29939 | -6/Cetus | Manufactured an Enhanced Grunt 29964 | -6/Cetus | Manufactured an Enhanced Grunt 29987 | -6/Cetus | Spotted Cetus Guard 29987 | -6/Cetus | Spotted Cetus Guard 29989 | -6/Cetus | Manufactured an Enhanced Grunt 29990 | -6/Cetus | Spotted Cetus Guard 29992 | -6/Cetus | Spotted Cetus Guard 30004 | -6/Cetus | Destroyed Cetus Guard 30004 | -6/Cetus | Destroyed Cetus Guard 30011 | -6/Cetus | Destroyed Cetus Guard 30013 | -6/Cetus | Allies destroyed Cetus Guard 30014 | -6/Cetus | Manufactured an Enhanced Grunt 30029 | -6/Cetus | Found Prototype Device 30029 | -6/Cetus | Identified Exp. Thermal Shield 30039 | -6/Cetus | Manufactured an Enhanced Grunt 30049 | -6/Cetus | Discovered exit to Factory (range 15) 30057 | -6/Cetus | Met Revision 17 30302 | -6/Cetus | Security sweep announced 30303 | -6/Cetus | Entered Archives 30303 | -6/Archives | Accompanied by 10 allies (A7) 30308 | -6/Archives | Received a hacking code to weaken MAIN.C 30374 | -6/Archives | Build established: Scavenger-Skirmisher 30376 | -6/Archives | Lost 4 allies 30459 | -6/Archives | Discovered new exit (range 20) 30527 | -6/Archives | Entered Hub_04(d) 30527 | -6/Hub_04(d) | Accompanied by 5 allies 30783 | -6/Hub_04(d) | Lost 4 allies 30788 | -6/Hub_04(d) | Discovered exit to Factory (range 7) 30844 | -6/Hub_04(d) | Network Hub disabled 30857 | -6/Hub_04(d) | Network Hub disabled 30857 | -6/Hub_04(d) | Spotted Lightning 30857 | -6/Hub_04(d) | Spotted Lightning 30860 | -6/Hub_04(d) | Spotted Lightning 30865 | -6/Hub_04(d) | System corruption reached 10% 30867 | -6/Hub_04(d) | Entered Factory 30867 | -5/Factory | Evolved 2 slots: Power x1, Utility x1 31084 | -5/Factory | Repaired Broken Centrium Heavy Treads 31153 | -5/Factory | Repaired Corrupted Centrium Heavy Treads 31191 | -5/Factory | Repaired Quantum Reactor 31247 | -5/Factory | Repaired Centrium Heavy Treads 31301 | -5/Factory | Build established: Scavenger-Tank 31599 | -5/Factory | Joined by Warlord Pyro squad 31689 | -5/Factory | Lost 3 allies 31976 | -5/Factory | Identified exit to Upper Caves 32022 | -5/Factory | Sucked down chute 32022 | -5/Factory | Entered Waste 32068 | -5/Waste | Spotted C-40 Crusher 32078 | -5/Waste | Destroyed C-40 Crusher 32099 | -5/Waste | Spotted C-40 Crusher 32104 | -5/Waste | Spotted C-40 Crusher 32110 | -5/Waste | Destroyed C-40 Crusher 32113 | -5/Waste | Destroyed C-40 Crusher 32118 | -5/Waste | Spotted C-40 Crusher 32124 | -5/Waste | Destroyed C-40 Crusher 32150 | -5/Waste | Spotted C-40 Crusher 32164 | -5/Waste | Destroyed C-40 Crusher 32165 | -5/Waste | Spotted C-40 Crusher 32176 | -5/Waste | Destroyed C-40 Crusher 32213 | -5/Waste | Discovered new exit (range 16) 32257 | -5/Waste | Entered Factory 33192 | -5/Factory | Build established: Scavenger-Assassin 33432 | -5/Factory | Unchained authorized (GL-D0S) 33472 | -5/Factory | Exiles provided nearest exit location to -4/Factory 33571 | -5/Factory | Repaired Broken Centrium Heavy Treads 33716 | -5/Factory | Garrison activated, responded to threat 33816 | -5/Factory | Discovered exit to Factory (range 4) 34013 | -5/Factory | Build established: Scavenger-Tank 34194 | -5/Factory | Entered Upper Caves 34204 | -5/Upper Caves | Learned Factory terminal intel 34355 | -5/Upper Caves | Learned 4 Factory zone layouts 34505 | -5/Upper Caves | Build established: Scavenger-Mutant 35187 | -5/Upper Caves | Build established: Scavenger-Skirmisher 35680 | -5/Upper Caves | Encountered a Warlord checkpoint 36213 | -5/Upper Caves | Discovered new exit (range 4) 36318 | -5/Upper Caves | Attracted the attention of an 0b10 outpost 36512 | -5/Upper Caves | Identified exit to Upper Caves 36941 | -5/Upper Caves | Entered another Upper Caves area 36941 | -5/Upper Caves | Accompanied by 2 allies 36964 | -5/Upper Caves | Discovered exit to Factory (range 16) 36978 | -5/Upper Caves | Learned Factory terminal intel 37462 | -5/Upper Caves | Encountered a Warlord checkpoint 38115 | -5/Upper Caves | Discovered new exit (range 8) 38126 | -5/Upper Caves | Identified exit to Warlord 38386 | -5/Upper Caves | Entered Warlord 38785 | -5/Warlord | Opened Warlord's prototype stash 38795 | -5/Warlord | Found Prototype Device 38795 | -5/Warlord | Identified Exp. Focal Shield 38818 | -5/Warlord | Found Prototype Hackware 38826 | -5/Warlord | Found Prototype Reactor 38853 | -5/Warlord | Warlord's base attacked by MAIN.C 39018 | -5/Warlord | Met Warlord 39203 | -5/Warlord | Warlord forces counterattacked 39236 | -5/Warlord | Spotted Striker 39283 | -5/Warlord | Spotted Striker 39284 | -5/Warlord | Spotted Executioner 39291 | -5/Warlord | Destroyed Executioner 39308 | -5/Warlord | Lost 6 allies 39353 | -5/Warlord | Discovered new exit (range 12) 39361 | -5/Warlord | Spotted B-86 Titan 39367 | -5/Warlord | Identified exit to Proximity Caves 39369 | -5/Warlord | Entered Proximity Caves 40055 | -4/Proximity Caves | Crushed by falling debris 40056 | -4/Proximity Caves | System corruption reached 10% 40086 | -4/Proximity Caves | Lost 3 parts (2u1w) 40182 | -4/Proximity Caves | Discovered exit to Factory (range 13) 40237 | -4/Proximity Caves | Entered Factory 40237 | -4/Factory | Evolved 2 slots: Utility x2 40238 | -4/Factory | Identified exit to Research 40239 | -4/Factory | Loaded intel: 26 terminal locations 40239 | -4/Factory | Identified System Mapper 40317 | -4/Factory | Discovered new exit (range 14) 40488 | -4/Factory | Build established: Scavenger-Tank 40636 | -4/Factory | Identified exit to DSF 40636 | -4/Factory | Entered DSF 40663 | -4/DSF | Additional patrols routed to DSF 40900 | -4/DSF | Discovered exit to Research (range 15) 40921 | -4/DSF | Entered Research 40921 | -3/Research | Evolved 2 slots: Utility x1, Weapon x1 41050 | -3/Research | Discovered new exit (range 17) 41121 | -3/Research | Revision forces began assault on 0b10 41259 | -3/Research | Met up with Revision 17++ 41260 | -3/Research | Identified Vortex Chain Reactor 41396 | -3/Research | Identified exit to Research 41621 | -3/Research | Research terminal network offline 41672 | -3/Research | Spotted B-90 Cyclops 41698 | -3/Research | Discovered new exit (range 15) 41899 | -3/Research | Lost 3 allies 42135 | -3/Research | Spotted Striker 42147 | -3/Research | Destroyed Striker 42282 | -3/Research | Spotted Striker 42295 | -3/Research | Destroyed Striker 42355 | -3/Research | Identified exit to Garrison 42362 | -3/Research | Entered Garrison 42434 | -3/Garrison | Triggered checkpoint 42494 | -3/Garrison | Garrison Relay disabled 42783 | -3/Garrison | Discovered new exit (range 11) 42989 | -3/Garrison | Garrison Relay disabled 43027 | -3/Garrison | Q-Series assembled to engage unique threat in Armory 43349 | -3/Garrison | Q-Series assembled to engage unique threat in Armory 43412 | -3/Garrison | Discovered new exit (range 10) 43493 | -3/Garrison | Q-Series assembled to engage unique threat in Armory 43673 | -3/Garrison | Lost 10 parts (2p1n4u3w) 43730 | -3/Garrison | Q-Series assembled to engage unique threat in Armory 43784 | -3/Garrison | Lost 4 allies 43847 | -3/Garrison | Attempted to access garrison exit controls, blocked by remote lockdown 43943 | -3/Garrison | Entered Armory 43944 | -3/Armory | Met VL-GR5, who suggested a friendly competition 44142 | -3/Armory | Lost the competition with VL-GR5 44193 | -3/Armory | First assault squad dispatched 44216 | -3/Armory | Attacked by VL-GR5 44257 | -3/Armory | Build established: Scavenger-Mutant 44498 | -3/Armory | Core integrity fell below 50% 44534 | -3/Armory | System corruption reached 10% 44597 | -3/Armory | Lost 11 parts (1p3n3u4w) 44960 | -3/Armory | Lost 3 allies 44967 | -3/Armory | Incoming assault squad redirected 44969 | -3/Armory | Incoming assault squad redirected 45063 | -3/Armory | Assimilated P-80 Master with FLK Orb 45068 | -3/Armory | Assimilated P-80 Master with FLK Orb 45072 | -3/Armory | Assimilated P-80 Master with FLK Orb 45080 | -3/Armory | Assimilated H-71 Marshal with FLK Orb 45110 | -3/Armory | Lost 3 parts (1n2u) 45404 | -3/Armory | Build established: Scavenger-Tank 45459 | -3/Armory | Incoming assault squad redirected 45486 | -3/Armory | Core integrity fell below 20% 45489 | -3/Armory | Master 8b assimilated hostile Y-72 Warden 45525 | -3/Armory | Incoming assault squad redirected 45540 | -3/Armory | Lost 3 allies 45547 | -3/Armory | Discovered exit to Research (range 8) 45609 | -3/Armory | Found Fusion Bomb Launcher 45799 | -3/Armory | Entered Research 45799 | -2/Research | Warlord forces began assault on 0b10 45799 | -2/Research | Evolved 2 slots: Utility x1, Weapon x1 45824 | -2/Research | Distinguished unit "Death Star" dispatched to help 45824 | -2/Research | Distinguished unit "Magnificent Bastards" dispatched to help 45829 | -2/Research | Identified exit to Testing 45834 | -2/Research | Build established: Scavenger-Gunner 45893 | -2/Research | Lost 4 allies 45909 | -2/Research | Research machine network offline 46138 | -2/Research | Met up with Warlord 46146 | -2/Research | Build established: Hacker-Gunner 46161 | -2/Research | Found Prototype Processor 46161 | -2/Research | Identified Exp. Melee Analysis Suite 46207 | -2/Research | Found Prototype Processor 46207 | -2/Research | Identified Exp. Core Analyzer 46224 | -2/Research | Spotted Striker 46252 | -2/Research | Lost 5 allies 46254 | -2/Research | Borebot progress halted 46370 | -2/Research | Borebot progress halted 46854 | -2/Research | Warlord invited to help at Command 46854 | -2/Research | Given Cave Seal Controls access code 46954 | -2/Research | Identified exit to Garrison 46968 | -2/Research | Entered Garrison 46968 | -2/Garrison | Discovered recently destroyed garrison 47069 | -2/Garrison | Garrison Relay disabled 47111 | -2/Garrison | Phase Generator disabled 47276 | -2/Garrison | Garrison Relay disabled 47305 | -2/Garrison | Garrison Relay disabled 47326 | -2/Garrison | Discovered new exit (range 12) 47503 | -2/Garrison | Discovered new exit (range 9) 47573 | -2/Garrison | Garrison Relay disabled 47769 | -2/Garrison | Rewired Executioner 47927 | -2/Garrison | Garrison Relay disabled 47976 | -2/Garrison | Discovered new exit (range 7) 48033 | -2/Garrison | Garrison Relay disabled 48059 | -2/Garrison | Build established: Commander-Gunner 48131 | -2/Garrison | Entered Research 48131 | -2/Research | Accompanied by 9 allies 48210 | -2/Research | Lost 3 allies 48240 | -2/Research | Discovered new exit (range 5) 48269 | -2/Research | Identified exit to Access 48311 | -2/Research | Unchained authorized (GL-D0S) 48381 | -2/Research | First assault squad dispatched 48393 | -2/Research | Adv. Hacking Suite fried by hacking feedback 48510 | -2/Research | Entered Access 48510 | -1/Access | Evolved 2 slots: Utility x2 48763 | -1/Access | Energy Cycler disabled 48884 | -1/Access | Build established: Scavenger-Tank 48927 | -1/Access | Identified exit to Command 49115 | -1/Access | Garrison activated, responded to threat 49510 | -1/Access | First assault squad dispatched 49657 | -1/Access | Destroyed 11 combat bots 49781 | -1/Access | Incoming assault squad redirected 49987 | -1/Access | Destroyed 14 combat bots 50030 | -1/Access | Incoming assault squad redirected 50057 | -1/Access | Destroyed 7 combat bots 50219 | -1/Access | Crushed by falling debris 50277 | -1/Access | Incoming assault squad redirected 50430 | -1/Access | High security lockdown imminent 50510 | -1/Access | High security lockdown engaged 50588 | -1/Access | Spotted Executioner 50588 | -1/Access | Spotted Striker 50588 | -1/Access | Spotted Striker 50601 | -1/Access | Destroyed Striker 50610 | -1/Access | Destroyed Striker 50613 | -1/Access | Destroyed Executioner 50640 | -1/Access | Lost 9 parts (1p2n2u4w) 50721 | -1/Access | Destroyed Investigator 50756 | -1/Access | Destroyed 11 combat bots 50879 | -1/Access | Entered Command 51129 | -1/Command | First assault squad dispatched 51409 | -1/Command | Incoming assault squad redirected 51570 | -1/Command | Disengaged cave seal 51570 | -1/Command | Derelicts emerged from the dark tunnel 51570 | -1/Command | Welcomed Warlord to Command 51641 | -1/Command | Build established: Hacker-Gunner 51648 | -1/Command | Incoming assault squad redirected 51713 | -1/Command | Destroyed 7 combat bots 51797 | -1/Command | High security lockdown imminent 51877 | -1/Command | High security lockdown engaged 51903 | -1/Command | Spotted B-99 Colossus 51969 | -1/Command | Build established: Scavenger-Tank 52044 | -1/Command | Phase Generator disabled 52478 | -1/Command | Spotted Executioner 52478 | -1/Command | Spotted Investigator 52482 | -1/Command | Destroyed Executioner 52492 | -1/Command | Spotted Striker 52492 | -1/Command | Spotted Striker 52498 | -1/Command | Spotted Striker 52499 | -1/Command | Spotted Executioner 52499 | -1/Command | Destroyed 8A-AWV(g) 52503 | -1/Command | Destroyed Executioner 52506 | -1/Command | Spotted Executioner 52521 | -1/Command | Destroyed Striker 52525 | -1/Command | Destroyed Executioner 52526 | -1/Command | Attacked by Warlord forces 52526 | -1/Command | Warlord destroyed during the assault 52539 | -1/Command | Spotted Executioner 52540 | -1/Command | Lost 4 allies 52546 | -1/Command | Destroyed Executioner 52567 | -1/Command | Destroyed 16 combat bots 52803 | -1/Command | Spotted Striker 52804 | -1/Command | Spotted Striker 52809 | -1/Command | Destroyed Striker 52810 | -1/Command | Spotted Executioner 52817 | -1/Command | Destroyed Executioner 52824 | -1/Command | Destroyed Striker 52824 | -1/Command | Spotted Striker 52825 | -1/Command | Spotted Striker 52831 | -1/Command | Destroyed Striker 52835 | -1/Command | Destroyed Striker 52856 | -1/Command | Destroyed 7 combat bots 52861 | -1/Command | Found Exp. Core Analyzer 52871 | -1/Command | Spotted Executioner 52881 | -1/Command | Spotted Executioner 52881 | -1/Command | Spotted Striker 52881 | -1/Command | Spotted Executioner 52886 | -1/Command | Destroyed Striker 52889 | -1/Command | Spotted Striker 52900 | -1/Command | System corruption reached 10% 52905 | -1/Command | Spotted Executioner 52905 | -1/Command | Spotted Executioner 52909 | -1/Command | System corruption reached 30% 52916 | -1/Command | Core integrity fell below 50% 52924 | -1/Command | Core integrity fell below 20% 52926 | -1/Command | Destroyed by P-80 Master with Gamma Rifle Last Messages --------------- 52918_ B-74 Champion destroyed. 52919_ Penetrated by Slug. 52919_ Slug penetrates Executioner. 52919_ Penetrated by Slug. 52920_ M-36 Artificer repairs Striker. 52920_ P-80 Master resets G-73 Enforcer, system corruption cleaned. 52921_ Penetrated by Slug. 52922_ Enh. Armored Heavy Treads destroyed. 52923_ Huge Storage Unit destroyed. 52923_ M-36 Artificer repairs Executioner. 52924_ Penetrated by Slug. 52924_ Slug penetrates P-80 Master. 52924_ G-73 Enforcer destroyed. 52924_ Slug penetrates P-80 Master. 52924_ Penetrated by Slug. 52924_ Exp. Heat Sink destroyed. 52925_ P-80 Master resets Striker, system corruption cleaned. 52925_ K-01 Serf collects debris. Map ----- +----------------------------------------------------+ | % # =!" #??????????????????????????? | | / / %/" #??????????????????????????? | | ####" #"#" #??????????????????????????? | | #??#" #### #????###############???????? | | ###+######### #??# #????# #???????? | | ??# ## # #??# ##???# #???????? | | ??# ## #+####"+"""#???# "" #???????? | | ??#^##! ! + "#???# """ "" #???????? | | ??# ## # * % #????# "R """" #???????? | | ??# #####/### !!!#????# """ """" #???????? | | ??# " ! #????# "" "" #???????? | | ###"##### # % !! #????# #???????? | | # #% #????# #???????? | | # + i ##???# #???????? | | # # ; ???# *#???????? | | # ####";#;;;;"#########+########???????? | | = / #?????????? | | * " #?????????? | | ###########+;;;;################?????????? | | #?????# %%%### #????????????????????? | | =]] #?????# ! h%%# # #????????????????????? | | =]] #?????# */! ! ##############???????? | | =] ####### " =[!]= # ! #???????? | | + + "" =!=|i!! ## = #???????? | | ###""########## "" !=ElgE!! ### #???????? | | ??# ##????????# /%%!@*%[!]## =! #???????# | | ??# #?????????# =%!hp%Kp! ## =! #??????## | | ??#%#????????#;#### *#!!!p!i ## =! #?????## | | ??# #????????### / !=!E%* ## #?????# | | ??#%######?????# =]! ]% !!m= #? #?????# | | ??# %#????#; %=% "%! ! #??? ???????# | | ??###### #?##### !/""!%*# #########/############ | | ?????##""###=#?# !Y!%%+%k% ! | | ?????#% %= % ##;% " *%*=;+;########### "###### # | | ?????# =* %=+% " =#!# #?????# ##?? | | ###### ""! ##;% = % # # ! #?????# #?# | | "" + "" %" ;%*! # # % #?????#[#?# | | R"" #% " "##"#"##+### # #######%##" | | "" # "" ###?####*#?# # """""" "/"####+ | | # %" %#??????#!#?# # ! + *= % *%= | | # %#??????#"###+####+######## % ######## | | # ??????#%! #???####+#####???? | | "!%= % ??????# #???# #???? | | # = ??????# """" #???# [ #???? | | #######+##### ?????# ""R"" #???# "" #???? | | ????? ??? ?????# "" "" #???# """#???? | | ? ? ????# #???# T"#???? | | ?????+ +???# """#???? | | !]]????# """" #???# "" #???? | | !]] ??# """" #???# ##### | +----------------------------------------------------+ Best States ------------- Heat Dissipation 97 Coolant Potential 120 Energy Generation 55 Energy Capacity 1300 Matter Stores 800 Matter Capacity 800 Sight Range 23 Robot Scan Range 20 Terrain Scan Range 24 Terrain Scan Density 10 Jamming Range 14 EM Shielding 4 Corruption Containment 12 Armor Coverage 1200 Resistance: KI 30 Resistance: TH 30 Core Shielding 30 Phase Shifting 15 Evasion (%) 55 Targeting Accuracy 8 Launcher Accuracy 20 Target Analysis 8 Core Analysis 12 Armor Integrity Analysis 30 Recoil Reduction 6 Kinecelleration 40 Salvage Targeting 2 Offensive Hacking 42 Defensive Hacking 12 Authchip Count 1 Item Schematics ----------------- Combat Drone Bay | -7/Data Miner | Free Lgt. Regenerative Plating | -7/Data Miner | Free Multireflex Exoskeleton | -7/Data Miner | Free Exp. Targeting Computer | -7/Data Miner | Free Imp. Lightning Gun | -7/Data Miner | Free Linear Gravjet | -7/Data Miner | Free Lrn. Tractor Beam | -7/Data Miner | Free KE Penetrator | -7/Data Miner | Free Robot Schematics ------------------ G-50 Soldier | -7/Data Miner | Free S-27 Virus | -7/Data Miner | Free E-15 Imp | -7/Data Miner | Free L-41 Fighter | -7/Data Miner | Free A-15 Conveyor | -7/Data Miner | Free Fabricated ------------ Nothing Repaired ---------- Mining Laser | 86% | -10/Materials Lgt. Treads | 25% | -10/Materials Lgt. Treads | 47% | -10/Materials Assault Cannon | 42% | -9/Materials Assault Cannon | 51% | -9/Materials Assault Cannon | 16% | -8/Materials Arm. Treads | 57% | -8/Materials Arm. Treads | 68% | -8/Materials | Broken Arm. Treads | 13% | -8/Materials Assault Cannon | 37% | -8/Materials Arm. Treads | 25% | -8/Materials Arm. Treads | 45% | -8/Materials Assault Cannon | 46% | -8/Materials Assault Cannon | 90% | -8/Materials Arm. Treads | 44% | -8/Materials Arm. Treads | 43% | -8/Materials Imp. Medium Armor Plating | 63% | -8/Materials Arm. Treads | 11% | -7/Factory Centrium Heavy Treads | 75% | -5/Factory | Broken Centrium Heavy Treads | 71% | -5/Factory | Corrupted Quantum Reactor | 32% | -5/Factory Centrium Heavy Treads | 51% | -5/Factory Centrium Heavy Treads | 53% | -5/Factory | Broken Studied --------- Grenade Launcher | -9/Materials | Hacked Rocket Launcher | -9/Materials | Hacked Assault Cannon | -8/Materials | Hacked Mni. Grenade Launcher | -8/Materials | Hacked Missile Launcher | -8/Materials | Hacked Imp. Grenade Launcher | -5/Factory | Hacked Railgun | -3/Research | Hacked Rnf. Antimatter Reactor | -3/Research | Hacked Hyp. Railgun | -1/Access | Hacked Adv. Remote Datajack | -1/Access | Hacked Alien Tech Used ----------------- None Achievements -------------- Tailor-made Challenges ------------ None Game ------ Seed DirtyGyrokineticBiocell Manual? 0 Play Time 06:24:18 Cumulative 389.1 hours Start 2026.02.04 @ 02:02:57 End 2026.02.04 @ 20:43:00 Sessions 6 Manual Loads 0 Difficulty Rogue Special Mode None Game No. 304 Rogue 304 Adventurer 0 Explorer 0 Win Type - Total 2 Types 2/0/0/0/0/0/0/0/0/0 Lore% 63 Gallery% 72 Achievement% 53 Wizard Run 0 Options --------- Layout 1 ASCII 0 Keyboard 0 Movement Arrows Keybinds 0 Fullscreen 1 Font 32/SmallcapsGlow Map View 50x35 Zoom Use 0% Tactical HUD 1 Map Filters NONE Filters NONE Steam 1 RUN: 9b76017f-e771-4829-a38f-ce3b5481b506